Workbook

Sheet Help
H3: دموی برنامه آنالیز و برآورد قیمت دانا
H5: آنالیز ردیفهای فهرست بها در چهاربخش (نیروی انسانی ، ماشین آلات ، تهیه مصالح و حمل مصالح ) بر اساس آخرین آنالیز اعلام شده از سوی سازمان مدیریت و برنامه ریزی کشور و دیگر قابلیتهای مورد نیاز برای تهیه آنالیز بها پروژه
H7: =" بر اساس "&'D2'!C1 -> بر اساس فهرست بهای ابنیه 97
H8: ویرایش چهارم نسخه 4.0.1
H11: توضیحات برنامه
H12: ضمن تشکر از حسن انتخاب شما کاربر گرامی بسیار خرسندیم از اینکه سعادتی شد تا در خدمدتان باشیم ، امید واریم بتوانیم همراه خوبی برایتان باشیم.
H13: قبل از شروع بکار با برنامه در صورتیکه فونتهای گروه B روی سیستم شما نصب نباشد می توانید از طریق لینک زیر فونتها را دانلود کرده و نصب کنید.
H15: بعد از فعال سازی برنامه یک کپی از فایل خام تهیه کنید و بصورت بک آپ ذخیره کنید تا در صورت انجام پروژه جدید از آن کپی گرفته و استفاده نمایید.
H16: نسخه نمایشی است و فقط آنالیز 7 آیتم قرار داده شده است. 010101 - 010102 - 010111 - 010112 - 010113 - 010114 - 010115
H17: معرفی برنامه
E19: پروژه نمونه | H19: اين برنامه با عنوان آنالیز و برآورد قیمت دانا جهت تنظيم آناليز ردیفهای فهرست بها و برآورد قيمت اجرای پروژه های عمرانی بر مبنای (جدول شماره 5 - تجزیه بهای اقلام کار ) مطابق با بخشنامه 96/1232579 مورخ 96/03/31 سازمان مدیریت و برنامه ریزی کشور (جایگزین بخشنامه 4951) جهت تهیه اسناد مناقصه و یا تهیه قیمت جدید تنظيم شده است.
E20: کارفرمای نمونه
E21: مشاور نمونه
E22: پیمانکار نمونه
H24: از آنجایکه این برنامه با استفاده از فرمول نویسی تحت اکسل و ماکرو نویسی در محیط VBA طراحی و پیاده سازی شده است. برای اجرای کدهای آن نیاز است که ماکرو در اکسل فعال باشد در تصویر زیر نحوه فعال کردن ماکرو بصورت تصویری آورده شده است با طی این مراحل ماکرو در اکسل فعال خواهد شد.
H31: پس از طی مراحل فوق برای اعمال تغییرات اکسل را ببندید و دوباره باز کنید.
H32: در صورت وجود ابهام از لینک مقابل استفاده کنید.
H34: راهنمای برنامه
H36: بعد از فعال کردن ماکرو و فعال سازی بخشهای مختلف برنامه قابل مشاهده خواهد شد. که در ادامه کاربرد هر یک از بخشها بصورت کلی و مختصر بیان شده است. و در انتها لینک دانلود کتابچه راهنما قرار داده شده است.
H39: از طریق دکمه «اطلاعات پروژه» مشخصات پروژه (شامل : عنوان پروژه ،نام كارفرما يا دستگاه اجرايي ، نام پيمانكار و نام مشاو) را وارد کنید.
H40: شماره رديفهاي مورد نياز جهت آناليز را وارد كرده ، مقدار و ضرایب آنها را نيز مشخص كنيد.و از طریق دکمه « فرم آنالیز» آنالیز ردیفها را مشاهده و کرده و آنها را آنالیز کنید.
H43: از آنالیز ردیفها گزارش گیری کرده و چاپ کنید و یا خروجی PDF یا اکسل قابل ویرایش تهیه کنید.
H46: لیست کل منابع فهرست بها ویا پروژه را با قیمتهای نت، آمار و روز و مقادیر مورد نیاز از هر یک را در پروژه ببینید و هزینه ها را مطالعه و بررسی کنید.
H47: نکته : از آنجایی که اطلاعات، منابع و مقادیر مورد نیاز پروژه از برگه Report فرا خوانی می شود حتما بایستی قبلاً گزارش گیری کرده باشید.
H49: راهنمای جامع نحوه کار با برنامه را از طریق لینک مقابل دانلود کنید
H50: کلیه حقوق مادی و معنوی این اثر متعلق به پدید آورنده آن می باشد
H51: پدید آورنده : اميد شيخا
H52: نیرو گرفته از قدرت اکسل

Sheet MEtreh (hidden)
B1: =COUNTA(B4:B1003) -> 3 | E1: ='D2'!B1 -> نسخه نمایشی فهرست بهای واحد پایه رشته ابنیه رسته ساختمان سال 97
A2: ردیف | B2: شماره آیتم | C2: شرح | D2: واحد | E2: بهاي رديف | F2: ضریب A | G2: ضریب B | H2: ضریب C | I2: مقدار | J2: بهای کل برآوردی | K2: بهاي واحد پيشنهادي | L2: بهاي كل پيشنهادي | M2: درصد رشد
J3: =SUM(J4:J1003) -> 210300 | L3: =SUM(L4:L1003) -> 210563.48 | M3: اضافه | N3: تخفيف
A4: 1 | B4: 010101 | C4: =IFERROR(VLOOKUP(B4,ItemDB,2,0),"") -> بوته کني در زمينهاي پوشيده شده از بوته و خارج کردن ريشه‌هاي آن از محل عمليات. | D4: =IFERROR(VLOOKUP(B4,ItemDB,3,0),"") -> مترمربع | E4: =PRODUCT(IFERROR(VLOOKUP(B4,ItemDB,4,0),0),F4:H4) -> 215 | I4: 20 | J4: =I4*E4 -> 4300 | K4: =IFERROR(VLOOKUP("شمـاره رديف آنـاليــز : "&B4,Anareport,9,0),0) -> 212.082 | L4: =K4*I4 -> 4241.64 | M4: =IF(K4>E4,K4/E4-1,"") ->  | N4: =IF(K4<E4,K4/E4-1,"") -> -0.01357209302
A5: 2 | B5: 010102 | C5: کندن و يا بريدن و در صورت لزوم ريشه کن کردن درخت از هر نوع، در صورتي که محيط تنه درخت در سطح زمين تا 15 سانتي متر باشد، به ازاي هر 5 سانتي متر محيط تنه (کسر 5 سانتي متر به تناسب محاسبه مي‌شود) و حمل آن به خارج محل عمليات. | D5: اصله | E5: 10300 | I5: 20 | J5: 206000 | K5: 10316.092 | L5: 206321.84 | M5: 0.001562330097
A6: 3 | B6: 010114 | C6: پر کردن و کوبيدن جاي ريشه با خاک مناسب در صورتي که محيط تنه درخت در سطح زمين بيش از 60 تا 90 سانتي متر باشد. | D6: اصله | E6: 214500 | J6: 0 | K6: 0 | L6: 0 | M6: =IF(K6>E6,K6/E6-1,"") ->  | N6: =IF(K6<E6,K6/E6-1,"") -> -1
A7: 4 | C7: =IFERROR(VLOOKUP(B7,ItemDB,2,0),"") ->  | E7: 0 | J7: 0 | K7: 0 | L7: 0
A8: 5 | E8: 0 | J8: 0 | K8: 0 | L8: 0
A9: 6 | E9: 0 | J9: 0 | K9: 0 | L9: 0
A10: 7 | E10: 0 | J10: 0 | K10: 0 | L10: 0
A11: 8 | E11: 0 | J11: 0 | K11: 0 | L11: 0
A12: 9 | E12: 0 | J12: 0 | K12: 0 | L12: 0
A13: 10 | E13: 0 | J13: 0 | K13: 0 | L13: 0
A14: 11 | E14: 0 | J14: 0 | K14: 0 | L14: 0
A15: 12 | E15: 0 | J15: 0 | K15: 0 | L15: 0
A16: 13 | E16: 0 | J16: 0 | K16: 0 | L16: 0
A17: 14 | E17: 0 | J17: 0 | K17: 0 | L17: 0
A18: 15 | E18: 0 | J18: 0 | K18: 0 | L18: 0
A19: 16 | E19: 0 | J19: 0 | K19: 0 | L19: 0
A20: 17 | E20: 0 | J20: 0 | K20: 0 | L20: 0
A21: 18 | E21: 0 | J21: 0 | K21: 0 | L21: 0
A22: 19 | E22: 0 | J22: 0 | K22: 0 | L22: 0
A23: 20 | E23: 0 | J23: 0 | K23: 0 | L23: 0
A24: 21 | E24: 0 | J24: 0 | K24: 0 | L24: 0
A25: 22 | E25: 0 | J25: 0 | K25: 0 | L25: 0
A26: 23 | E26: 0 | J26: 0 | K26: 0 | L26: 0
A27: 24 | E27: 0 | J27: 0 | K27: 0 | L27: 0
A28: 25 | E28: 0 | J28: 0 | K28: 0 | L28: 0
A29: 26 | E29: 0 | J29: 0 | K29: 0 | L29: 0
A30: 27 | E30: 0 | J30: 0 | K30: 0 | L30: 0
A31: 28 | E31: 0 | J31: 0 | K31: 0 | L31: 0
A32: 29 | E32: 0 | J32: 0 | K32: 0 | L32: 0
A33: 30 | E33: 0 | J33: 0 | K33: 0 | L33: 0
A34: 31 | E34: 0 | J34: 0 | K34: 0 | L34: 0
A35: 32 | E35: 0 | J35: 0 | K35: 0 | L35: 0
A36: 33 | E36: 0 | J36: 0 | K36: 0 | L36: 0
A37: 34 | E37: 0 | J37: 0 | K37: 0 | L37: 0
A38: 35 | E38: 0 | J38: 0 | K38: 0 | L38: 0
A39: 36 | E39: 0 | J39: 0 | K39: 0 | L39: 0
A40: 37 | E40: 0 | J40: 0 | K40: 0 | L40: 0
A41: 38 | E41: 0 | J41: 0 | K41: 0 | L41: 0
A42: 39 | E42: 0 | J42: 0 | K42: 0 | L42: 0
A43: 40 | E43: 0 | J43: 0 | K43: 0 | L43: 0
A44: 41 | E44: 0 | J44: 0 | K44: 0 | L44: 0
A45: 42 | E45: 0 | J45: 0 | K45: 0 | L45: 0
A46: 43 | E46: 0 | J46: 0 | K46: 0 | L46: 0
A47: 44 | E47: 0 | J47: 0 | K47: 0 | L47: 0
A48: 45 | E48: 0 | J48: 0 | K48: 0 | L48: 0
A49: 46 | E49: 0 | J49: 0 | K49: 0 | L49: 0
A50: 47 | E50: 0 | J50: 0 | K50: 0 | L50: 0
A51: 48 | E51: 0 | J51: 0 | K51: 0 | L51: 0
A52: 49 | E52: 0 | J52: 0 | K52: 0 | L52: 0
A53: 50 | E53: 0 | J53: 0 | K53: 0 | L53: 0
A54: 51 | E54: 0 | J54: 0 | K54: 0 | L54: 0
A55: 52 | E55: 0 | J55: 0 | K55: 0 | L55: 0
A56: 53 | E56: 0 | J56: 0 | K56: 0 | L56: 0
A57: 54 | E57: 0 | J57: 0 | K57: 0 | L57: 0
A58: 55 | E58: 0 | J58: 0 | K58: 0 | L58: 0
A59: 56 | E59: 0 | J59: 0 | K59: 0 | L59: 0
A60: 57 | E60: 0 | J60: 0 | K60: 0 | L60: 0
A61: 58 | E61: 0 | J61: 0 | K61: 0 | L61: 0
A62: 59 | E62: 0 | J62: 0 | K62: 0 | L62: 0
A63: 60 | E63: 0 | J63: 0 | K63: 0 | L63: 0
A64: 61 | E64: 0 | J64: 0 | K64: 0 | L64: 0
A65: 62 | E65: 0 | J65: 0 | K65: 0 | L65: 0
A66: 63 | E66: 0 | J66: 0 | K66: 0 | L66: 0
A67: 64 | E67: 0 | J67: 0 | K67: 0 | L67: 0
A68: 65 | C68: =IFERROR(VLOOKUP(B68,ItemDB,2,0),"") ->  | D68: =IFERROR(VLOOKUP(B68,ItemDB,3,0),"") ->  | E68: =PRODUCT(IFERROR(VLOOKUP(B68,ItemDB,4,0),0),F68:H68) -> 0 | J68: =I68*E68 -> 0 | K68: =IFERROR(VLOOKUP("شمـاره رديف آنـاليــز : "&B68,Anareport,9,0),0) -> 0 | L68: =K68*I68 -> 0
A69: 66 | E69: 0 | J69: 0 | K69: 0 | L69: 0
A70: 67 | E70: 0 | J70: 0 | K70: 0 | L70: 0 | M70: =IF(K70>E70,K70/E70-1,"") ->  | N70: =IF(K70<E70,K70/E70-1,"") -> 
A71: 68 | E71: 0 | J71: 0 | K71: 0 | L71: 0
A72: 69 | E72: 0 | J72: 0 | K72: 0 | L72: 0
A73: 70 | E73: 0 | J73: 0 | K73: 0 | L73: 0
A74: 71 | E74: 0 | J74: 0 | K74: 0 | L74: 0
A75: 72 | E75: 0 | J75: 0 | K75: 0 | L75: 0
A76: 73 | E76: 0 | J76: 0 | K76: 0 | L76: 0
A77: 74 | E77: 0 | J77: 0 | K77: 0 | L77: 0
A78: 75 | E78: 0 | J78: 0 | K78: 0 | L78: 0
A79: 76 | E79: 0 | J79: 0 | K79: 0 | L79: 0
A80: 77 | E80: 0 | J80: 0 | K80: 0 | L80: 0
A81: 78 | E81: 0 | J81: 0 | K81: 0 | L81: 0
A82: 79 | E82: 0 | J82: 0 | K82: 0 | L82: 0
A83: 80 | E83: 0 | J83: 0 | K83: 0 | L83: 0
A84: 81 | E84: 0 | J84: 0 | K84: 0 | L84: 0
A85: 82 | E85: 0 | J85: 0 | K85: 0 | L85: 0
A86: 83 | E86: 0 | J86: 0 | K86: 0 | L86: 0
A87: 84 | E87: 0 | J87: 0 | K87: 0 | L87: 0
A88: 85 | E88: 0 | J88: 0 | K88: 0 | L88: 0
A89: 86 | E89: 0 | J89: 0 | K89: 0 | L89: 0
A90: 87 | E90: 0 | J90: 0 | K90: 0 | L90: 0
A91: 88 | E91: 0 | J91: 0 | K91: 0 | L91: 0
A92: 89 | E92: 0 | J92: 0 | K92: 0 | L92: 0
A93: 90 | E93: 0 | J93: 0 | K93: 0 | L93: 0
A94: 91 | E94: 0 | J94: 0 | K94: 0 | L94: 0
A95: 92 | E95: 0 | J95: 0 | K95: 0 | L95: 0
A96: 93 | E96: 0 | J96: 0 | K96: 0 | L96: 0
A97: 94 | E97: 0 | J97: 0 | K97: 0 | L97: 0
A98: 95 | E98: 0 | J98: 0 | K98: 0 | L98: 0
A99: 96 | E99: 0 | J99: 0 | K99: 0 | L99: 0
A100: 97 | E100: 0 | J100: 0 | K100: 0 | L100: 0
A101: 98 | E101: 0 | J101: 0 | K101: 0 | L101: 0
A102: 99 | E102: 0 | J102: 0 | K102: 0 | L102: 0
A103: 100 | E103: 0 | J103: 0 | K103: 0 | L103: 0
A104: 101 | E104: 0 | J104: 0 | K104: 0 | L104: 0
A105: 102 | E105: 0 | J105: 0 | K105: 0 | L105: 0
A106: 103 | E106: 0 | J106: 0 | K106: 0 | L106: 0
A107: 104 | E107: 0 | J107: 0 | K107: 0 | L107: 0
A108: 105 | E108: 0 | J108: 0 | K108: 0 | L108: 0
A109: 106 | E109: 0 | J109: 0 | K109: 0 | L109: 0
A110: 107 | E110: 0 | J110: 0 | K110: 0 | L110: 0
A111: 108 | E111: 0 | J111: 0 | K111: 0 | L111: 0
A112: 109 | E112: 0 | J112: 0 | K112: 0 | L112: 0
A113: 110 | E113: 0 | J113: 0 | K113: 0 | L113: 0
A114: 111 | E114: 0 | J114: 0 | K114: 0 | L114: 0
A115: 112 | E115: 0 | J115: 0 | K115: 0 | L115: 0
A116: 113 | E116: 0 | J116: 0 | K116: 0 | L116: 0
A117: 114 | E117: 0 | J117: 0 | K117: 0 | L117: 0
A118: 115 | E118: 0 | J118: 0 | K118: 0 | L118: 0
A119: 116 | E119: 0 | J119: 0 | K119: 0 | L119: 0
A120: 117 | E120: 0 | J120: 0 | K120: 0 | L120: 0
A121: 118 | E121: 0 | J121: 0 | K121: 0 | L121: 0
A122: 119 | E122: 0 | J122: 0 | K122: 0 | L122: 0
A123: 120 | E123: 0 | J123: 0 | K123: 0 | L123: 0
A124: 121 | E124: 0 | J124: 0 | K124: 0 | L124: 0
A125: 122 | E125: 0 | J125: 0 | K125: 0 | L125: 0
A126: 123 | E126: 0 | J126: 0 | K126: 0 | L126: 0
A127: 124 | E127: 0 | J127: 0 | K127: 0 | L127: 0
A128: 125 | E128: 0 | J128: 0 | K128: 0 | L128: 0
A129: 126 | E129: 0 | J129: 0 | K129: 0 | L129: 0
A130: 127 | E130: 0 | J130: 0 | K130: 0 | L130: 0
A131: 128 | E131: 0 | J131: 0 | K131: 0 | L131: 0
A132: 129 | C132: =IFERROR(VLOOKUP(B132,ItemDB,2,0),"") ->  | D132: =IFERROR(VLOOKUP(B132,ItemDB,3,0),"") ->  | E132: =PRODUCT(IFERROR(VLOOKUP(B132,ItemDB,4,0),0),F132:H132) -> 0 | J132: =I132*E132 -> 0 | K132: =IFERROR(VLOOKUP("شمـاره رديف آنـاليــز : "&B132,Anareport,9,0),0) -> 0 | L132: =K132*I132 -> 0
A133: 130 | E133: 0 | J133: 0 | K133: 0 | L133: 0
A134: 131 | E134: 0 | J134: 0 | K134: 0 | L134: 0 | M134: =IF(K134>E134,K134/E134-1,"") ->  | N134: =IF(K134<E134,K134/E134-1,"") -> 
A135: 132 | E135: 0 | J135: 0 | K135: 0 | L135: 0
A136: 133 | E136: 0 | J136: 0 | K136: 0 | L136: 0
A137: 134 | E137: 0 | J137: 0 | K137: 0 | L137: 0
A138: 135 | E138: 0 | J138: 0 | K138: 0 | L138: 0
A139: 136 | E139: 0 | J139: 0 | K139: 0 | L139: 0
A140: 137 | E140: 0 | J140: 0 | K140: 0 | L140: 0
A141: 138 | E141: 0 | J141: 0 | K141: 0 | L141: 0
A142: 139 | E142: 0 | J142: 0 | K142: 0 | L142: 0
A143: 140 | E143: 0 | J143: 0 | K143: 0 | L143: 0
A144: 141 | E144: 0 | J144: 0 | K144: 0 | L144: 0
A145: 142 | E145: 0 | J145: 0 | K145: 0 | L145: 0
A146: 143 | E146: 0 | J146: 0 | K146: 0 | L146: 0
A147: 144 | E147: 0 | J147: 0 | K147: 0 | L147: 0
A148: 145 | E148: 0 | J148: 0 | K148: 0 | L148: 0
A149: 146 | E149: 0 | J149: 0 | K149: 0 | L149: 0
A150: 147 | E150: 0 | J150: 0 | K150: 0 | L150: 0
A151: 148 | E151: 0 | J151: 0 | K151: 0 | L151: 0
A152: 149 | E152: 0 | J152: 0 | K152: 0 | L152: 0
A153: 150 | E153: 0 | J153: 0 | K153: 0 | L153: 0
A154: 151 | E154: 0 | J154: 0 | K154: 0 | L154: 0
A155: 152 | E155: 0 | J155: 0 | K155: 0 | L155: 0
A156: 153 | E156: 0 | J156: 0 | K156: 0 | L156: 0
A157: 154 | E157: 0 | J157: 0 | K157: 0 | L157: 0
A158: 155 | E158: 0 | J158: 0 | K158: 0 | L158: 0
A159: 156 | E159: 0 | J159: 0 | K159: 0 | L159: 0
A160: 157 | E160: 0 | J160: 0 | K160: 0 | L160: 0
A161: 158 | E161: 0 | J161: 0 | K161: 0 | L161: 0
A162: 159 | E162: 0 | J162: 0 | K162: 0 | L162: 0
A163: 160 | E163: 0 | J163: 0 | K163: 0 | L163: 0
A164: 161 | E164: 0 | J164: 0 | K164: 0 | L164: 0
A165: 162 | E165: 0 | J165: 0 | K165: 0 | L165: 0
A166: 163 | E166: 0 | J166: 0 | K166: 0 | L166: 0
A167: 164 | E167: 0 | J167: 0 | K167: 0 | L167: 0
A168: 165 | E168: 0 | J168: 0 | K168: 0 | L168: 0
A169: 166 | E169: 0 | J169: 0 | K169: 0 | L169: 0
A170: 167 | E170: 0 | J170: 0 | K170: 0 | L170: 0
A171: 168 | E171: 0 | J171: 0 | K171: 0 | L171: 0
A172: 169 | E172: 0 | J172: 0 | K172: 0 | L172: 0
A173: 170 | E173: 0 | J173: 0 | K173: 0 | L173: 0
A174: 171 | E174: 0 | J174: 0 | K174: 0 | L174: 0
A175: 172 | E175: 0 | J175: 0 | K175: 0 | L175: 0
A176: 173 | E176: 0 | J176: 0 | K176: 0 | L176: 0
A177: 174 | E177: 0 | J177: 0 | K177: 0 | L177: 0
A178: 175 | E178: 0 | J178: 0 | K178: 0 | L178: 0
A179: 176 | E179: 0 | J179: 0 | K179: 0 | L179: 0
A180: 177 | E180: 0 | J180: 0 | K180: 0 | L180: 0
A181: 178 | E181: 0 | J181: 0 | K181: 0 | L181: 0
A182: 179 | E182: 0 | J182: 0 | K182: 0 | L182: 0
A183: 180 | E183: 0 | J183: 0 | K183: 0 | L183: 0
A184: 181 | E184: 0 | J184: 0 | K184: 0 | L184: 0
A185: 182 | E185: 0 | J185: 0 | K185: 0 | L185: 0
A186: 183 | E186: 0 | J186: 0 | K186: 0 | L186: 0
A187: 184 | E187: 0 | J187: 0 | K187: 0 | L187: 0
A188: 185 | E188: 0 | J188: 0 | K188: 0 | L188: 0
A189: 186 | E189: 0 | J189: 0 | K189: 0 | L189: 0
A190: 187 | E190: 0 | J190: 0 | K190: 0 | L190: 0
A191: 188 | E191: 0 | J191: 0 | K191: 0 | L191: 0
A192: 189 | E192: 0 | J192: 0 | K192: 0 | L192: 0
A193: 190 | E193: 0 | J193: 0 | K193: 0 | L193: 0
A194: 191 | E194: 0 | J194: 0 | K194: 0 | L194: 0
A195: 192 | E195: 0 | J195: 0 | K195: 0 | L195: 0
A196: 193 | C196: =IFERROR(VLOOKUP(B196,ItemDB,2,0),"") ->  | D196: =IFERROR(VLOOKUP(B196,ItemDB,3,0),"") ->  | E196: =PRODUCT(IFERROR(VLOOKUP(B196,ItemDB,4,0),0),F196:H196) -> 0 | J196: =I196*E196 -> 0 | K196: =IFERROR(VLOOKUP("شمـاره رديف آنـاليــز : "&B196,Anareport,9,0),0) -> 0 | L196: =K196*I196 -> 0
A197: 194 | E197: 0 | J197: 0 | K197: 0 | L197: 0
A198: 195 | E198: 0 | J198: 0 | K198: 0 | L198: 0 | M198: =IF(K198>E198,K198/E198-1,"") ->  | N198: =IF(K198<E198,K198/E198-1,"") -> 
A199: 196 | E199: 0 | J199: 0 | K199: 0 | L199: 0
A200: 197 | E200: 0 | J200: 0 | K200: 0 | L200: 0
... 803 more rows

Sheet Analiz (hidden)
B1: =C7 -> 2 | F1: جدید (مقیاس) | G1: =IF(F1=F3,TRUE,FALSE) -> TRUE | S1: ضریب عامل | T1: مقدار/ مقیاس
B2: 2 | F2: قدیم (4951) | L2: =IF(G1,N9,M9) -> مقدار/مقیاس | R2: ضرایب ثابت آنالیز سازمان | U2: نت
B3: 2 | F3: جدید (مقیاس) | R3: اعمال درصد(مینوس/پلوس)معکوس | U3: آمار
A4: - | B4: 2 | G4: =VLOOKUP(E7,ItemDB,3,0) -> اصله | S4: COL_INEDX | U4: روز
B5: =B7 -> 2 | E5: 010102 | I5: =VLOOKUP(F6,FsolDB,2,0) -> فصل 1 . عملیات تخریب | P5: نسخه نمایشی | R5: ضرایب ثابت آنالیز سازمان | S5: =IF(G1,4,+IF(R5="ضرایب ثابت آنالیز سازمان",7,6)) -> 4 | U5: نت | V5: 5
B6: =C7 -> 2 | E6: 030102 | F6: =ROUND(E7*0.0001,0) -> 1 | I6: شرح ردیف : | L6: =IFERROR(VLOOKUP(E7,ItemDB,2,0),"") -> کندن و يا بريدن و در صورت لزوم ريشه کن کردن درخت از هر نوع، در صورتي که محيط تنه درخت در سطح زمين تا 15 سانتي متر باشد، به ازاي هر 5 سانتي متر محيط تنه (کسر 5 سانتي متر به تناسب محاسبه مي‌شود) و حمل آن به خارج محل عمليات. | Q6: =P112 -> 10316.092 | R6: مقدار | S6: =IF(G1,+IF(R5="ضرایب ثابت آنالیز سازمان",3,2),10) -> 3 | V6: =V5/100+1 -> 1.05
B7: =C7 -> 2 | C7: =IF(F6>0,2,0) -> 2 | E7: =E5 -> 010102 | I7: ="شمـاره رديف آنـاليــز : "&E7 -> شمـاره رديف آنـاليــز : 010102 | Q7: =P112 -> 10316.092 | R7: بهای واحد | S7: =IF(U5="نت",4,IF(U5="آمار",5,6)) -> 4
B8: 2 | I8: ="واحـد : "&VLOOKUP(E7,ItemDB,3,0) -> واحـد : اصله | K8: =" مقدار : "&Q8 -> مقدار : 20 | Q8: =VLOOKUP(E7,metreh,8,0) -> 20 | U8: ضريب صفر | V8: ضريب پيشنهاد | Y8: مقدار/مقیاس صفر | Z8: مقدار مقیاس پیشنهادی
B9: =IF(I10>0,2,0) -> 2 | I9: رديف | J9: کد عامل | K9: نيروي انساني | L9: واحد | M9: =IF(G1,"مقیاس1","ضریب عامل") -> مقیاس1 | N9: =IF(G1,"مقدار/مقیاس","مقدار") -> مقدار/مقیاس | O9: بهای واحد عامل | P9: بهاي کل | S9: قيمت نت در مقداردر ضريب | T9: ضريب سازمان | U9: =V9 -> 10316.092 | V9: =P112 -> 10316.092 | W9: قيمت درمقیاس در مقدار/مقیاس | X9: مقدار / مقیاس
A10: =B10*C10 -> 10102 | B10: =COUNTIF(Anb!A:A,C10) -> 1 | C10: =D10+(G10*F10) -> 10102 | D10: =$E$7 -> 010102 | F10: 1e-08 | G10: 1 | I10: =VLOOKUP(A10,AnalizDB,16,0) -> 1 | J10: =VLOOKUP(A10,AnalizDB,13,0) -> 14010102 | K10: =VLOOKUP(A10,AnalizDB,12,0) -> كارگر ساده | L10: =VLOOKUP(A10,AnalizDB,11,0) -> نفر- ساعت | M10: =VLOOKUP(A10,AnalizDB,$S$5,0) -> 1 | N10: =VLOOKUP(A10,AnalizDB,$S$6,0) -> 0.105 | O10: =VLOOKUP(J10,ManabehDB,$S$7,0) -> 57013 | P10: =IFERROR(O10*N10*M10,0) -> 5986.365 | Q10: =VLOOKUP(A10,AnalizDB,10,0)*$Q$8 -> 2.1 | S10: =IFERROR(O10*N10*T10,0) -> 5986.365 | T10: =VLOOKUP(A10,AnalizDB,7,0) -> 1 | U10: =$S$114*T10 -> 0.998440107 | V10: =$V$6*U10 -> 1.048362112 | W10: =IFERROR(X10*O10,0) -> 5986.365 | X10: =VLOOKUP(A10,AnalizDB,3,0) -> 0.105 | Y10: =$W$114*X10 -> 0.1048362112 | Z10: =Y10*$V$6 -> 0.1100780218
A11: 10102 | B11: =COUNTIF(Anb!A:A,C11) -> 1 | C11: 10102 | D11: =$E$7 -> 010102 | F11: 1e-08 | G11: 2 | I11: 2 | J11: 14120101 | K11: نجار در و پنجره ساز درجه یک | L11: نفر ساعت | M11: =VLOOKUP(A11,AnalizDB,$S$5,0) -> 1 | N11: =VLOOKUP(A11,AnalizDB,$S$6,0) -> 0.0105 | O11: 99236 | P11: =IFERROR(O11*N11*M11,0) -> 1041.978 | Q11: 0.21 | S11: =IFERROR(O11*N11*T11,0) -> 1041.978 | T11: 1 | U11: =$S$114*T11 -> 0.998440107 | V11: =$V$6*U11 -> 1.048362112 | W11: =IFERROR(X11*O11,0) -> 1041.978 | X11: 0.0105 | Y11: =$W$114*X11 -> 0.01048362112 | Z11: =Y11*$V$6 -> 0.01100780218
A12: 10102 | B12: =COUNTIF(Anb!A:A,C12) -> 1 | C12: 10102 | D12: 010102 | F12: 1e-08 | G12: 3 | I12: 3 | J12: 14120401 | K12: کمک نجار | L12: نفر - ساعت | M12: 1 | N12: =VLOOKUP(A12,AnalizDB,$S$6,0) -> 0.053 | O12: 60297 | P12: =IFERROR(O12*N12*M12,0) -> 3195.741 | Q12: 1.06 | S12: 3195.741 | T12: 1 | U12: =$S$114*T12 -> 0.998440107 | V12: =$V$6*U12 -> 1.048362112 | W12: 3195.741 | X12: 0.053 | Y12: 0.05291732567 | Z12: =Y12*$V$6 -> 0.05556319195
A13: 0 | B13: =COUNTIF(Anb!A:A,C13) -> 0 | C13: 10102 | D13: 010102 | F13: 1e-08 | G13: 4 | I13: =VLOOKUP(A13,AnalizDB,16,0) ->  | P13: 0 | S13: 0 | W13: 0
A14: 0 | B14: =COUNTIF(Anb!A:A,C14) -> 0 | C14: 10102 | D14: 010102 | F14: 1e-08 | G14: 5 | P14: 0 | S14: 0 | W14: 0
A15: 0 | B15: =COUNTIF(Anb!A:A,C15) -> 0 | C15: 10102 | D15: 010102 | F15: 1e-08 | G15: 6 | P15: 0 | S15: 0 | W15: 0
A16: 0 | B16: =COUNTIF(Anb!A:A,C16) -> 0 | C16: 10102 | D16: 010102 | F16: 1e-08 | G16: 7 | P16: 0 | S16: 0 | W16: 0
A17: 0 | B17: =COUNTIF(Anb!A:A,C17) -> 0 | C17: 10102 | D17: 010102 | F17: 1e-08 | G17: 8 | P17: 0 | S17: 0 | W17: 0
A18: 0 | B18: =COUNTIF(Anb!A:A,C18) -> 0 | C18: 10102 | D18: 010102 | F18: 1e-08 | G18: 9 | P18: 0 | S18: 0 | W18: 0
A19: 0 | B19: =COUNTIF(Anb!A:A,C19) -> 0 | C19: 10102 | D19: 010102 | F19: 1e-08 | G19: 10 | P19: 0 | S19: 0 | W19: 0
A20: 0 | B20: =COUNTIF(Anb!A:A,C20) -> 0 | C20: 10102 | D20: 010102 | F20: 1e-08 | G20: 11 | P20: 0 | S20: 0 | W20: 0
A21: 0 | B21: =COUNTIF(Anb!A:A,C21) -> 0 | C21: 10102 | D21: 010102 | F21: 1e-08 | G21: 12 | P21: 0 | S21: 0 | W21: 0
A22: 0 | B22: =COUNTIF(Anb!A:A,C22) -> 0 | C22: 10102 | D22: 010102 | F22: 1e-08 | G22: 13 | P22: 0 | S22: 0 | W22: 0
A23: 0 | B23: =COUNTIF(Anb!A:A,C23) -> 0 | C23: 10102 | D23: 010102 | F23: 1e-08 | G23: 14 | P23: 0 | S23: 0 | W23: 0
A24: 0 | B24: =COUNTIF(Anb!A:A,C24) -> 0 | C24: 10102 | D24: 010102 | F24: 1e-08 | G24: 15 | P24: 0 | S24: 0 | W24: 0
A25: 0 | B25: =COUNTIF(Anb!A:A,C25) -> 0 | C25: 10102 | D25: 010102 | F25: 1e-08 | G25: 16 | P25: 0 | S25: 0 | W25: 0
A26: 0 | B26: =COUNTIF(Anb!A:A,C26) -> 0 | C26: 10102 | D26: 010102 | F26: 1e-08 | G26: 17 | P26: 0 | S26: 0 | W26: 0
A27: 0 | B27: =COUNTIF(Anb!A:A,C27) -> 0 | C27: 10102 | D27: 010102 | F27: 1e-08 | G27: 18 | P27: 0 | S27: 0 | W27: 0
A28: 0 | B28: =COUNTIF(Anb!A:A,C28) -> 0 | C28: 10102 | D28: 010102 | F28: 1e-08 | G28: 19 | P28: 0 | S28: 0 | W28: 0
A29: 0 | B29: =COUNTIF(Anb!A:A,C29) -> 0 | C29: 10102 | D29: 010102 | F29: 1e-08 | G29: 20 | P29: 0 | S29: 0 | W29: 0
A30: 0 | B30: =COUNTIF(Anb!A:A,C30) -> 0 | C30: 10102 | D30: 010102 | F30: 1e-08 | G30: 21 | P30: 0 | S30: 0 | W30: 0
A31: 0 | B31: =COUNTIF(Anb!A:A,C31) -> 0 | C31: 10102 | D31: 010102 | F31: 1e-08 | G31: 22 | P31: 0 | S31: 0 | W31: 0
A32: 0 | B32: =COUNTIF(Anb!A:A,C32) -> 0 | C32: 10102 | D32: 010102 | F32: 1e-08 | G32: 23 | P32: 0 | S32: 0 | W32: 0
A33: 0 | B33: =COUNTIF(Anb!A:A,C33) -> 0 | C33: 10102 | D33: 010102 | F33: 1e-08 | G33: 24 | P33: 0 | S33: 0 | W33: 0
A34: 0 | B34: =COUNTIF(Anb!A:A,C34) -> 0 | C34: 10102 | D34: 010102 | F34: 1e-08 | G34: 25 | P34: 0 | S34: 0 | W34: 0
B35: =IF(SUM(B10:B34)>0,2,0) -> 2 | D35: 010102 | I35: درصد وزنی | L35: =ROUND(IFERROR(P35/P112,0),4) -> 0.9911 | N35: جمع نيروي انساني | P35: =SUM(P10:P34) -> 10224.084 | U35: 0 | V35: 0 | W35: 0 | Y35: 0 | Z35: 0
B36: =B37 -> 1 | D36: 010102 | I36: رديف | J36: کد عامل | K36: ماشين آلات 2 | L36: واحد | M36: =M9 -> مقیاس1 | N36: =N9 -> مقدار/مقیاس | O36: =O9 -> بهای واحد عامل | P36: بهاي کل | U36: 0 | V36: 0 | W36: 0 | Y36: 0 | Z36: 0
A37: =B37*C37 -> 10102 | B37: =COUNTIF(Anb!A:A,C37) -> 1 | C37: =D37+(G37*F37) -> 10102 | D37: 010102 | F37: 1e-06 | G37: 1 | I37: =VLOOKUP(A37,AnalizDB,16,0) -> 1 | J37: =VLOOKUP(A37,AnalizDB,13,0) -> 28060203 | K37: =VLOOKUP(A37,AnalizDB,12,0) -> اره بنزینی متحرک چوب | L37: =VLOOKUP(A37,AnalizDB,11,0) -> دستگاه ساعت | M37: =VLOOKUP(A37,AnalizDB,$S$5,0) -> 1 | N37: =VLOOKUP(A37,AnalizDB,$S$6,0) -> 0.053 | O37: =VLOOKUP(J37,ManabehDB,$S$7,0) -> 1736 | P37: =IFERROR(O37*N37*M37,0) -> 92.008 | Q37: =VLOOKUP(A37,AnalizDB,10,0)*$Q$8 -> 1.06 | S37: =IFERROR(O37*N37*T37,0) -> 92.008 | T37: =VLOOKUP(A37,AnalizDB,7,0) -> 1 | U37: 0.998440107 | V37: 1.048362112 | W37: 92.008 | X37: =VLOOKUP(A37,AnalizDB,3,0) -> 0.053 | Y37: 0.05291732567 | Z37: 0.05556319195
A38: 0 | B38: =COUNTIF(Anb!A:A,C38) -> 0 | C38: 10102 | D38: 010102 | F38: 1e-06 | G38: 2 | N38: =VLOOKUP(A38,AnalizDB,$S$6,0) ->  | P38: 0 | S38: =IFERROR(O38*N38*T38,0) -> 0 | W38: 0
A39: 0 | B39: =COUNTIF(Anb!A:A,C39) -> 0 | C39: 10102 | D39: 010102 | F39: 1e-06 | G39: 3 | P39: 0 | S39: 0 | W39: 0
A40: 0 | B40: =COUNTIF(Anb!A:A,C40) -> 0 | C40: 10102 | D40: 010102 | F40: 1e-06 | G40: 4 | P40: 0 | S40: 0 | W40: 0
A41: 0 | B41: =COUNTIF(Anb!A:A,C41) -> 0 | C41: 10102 | D41: 010102 | F41: 1e-06 | G41: 5 | P41: 0 | S41: 0 | W41: 0
A42: 0 | B42: =COUNTIF(Anb!A:A,C42) -> 0 | C42: 10102.00001 | D42: 010102 | F42: 1e-06 | G42: 6 | P42: 0 | S42: 0 | U42: =$S$114*T42 ->  | V42: =$V$6*U42 ->  | W42: 0
A43: 0 | B43: =COUNTIF(Anb!A:A,C43) -> 0 | C43: 10102.00001 | D43: 010102 | F43: 1e-06 | G43: 7 | P43: 0 | S43: 0 | W43: 0
A44: 0 | B44: =COUNTIF(Anb!A:A,C44) -> 0 | C44: 10102.00001 | D44: 010102 | F44: 1e-06 | G44: 8 | P44: 0 | S44: 0 | W44: 0
A45: 0 | B45: =COUNTIF(Anb!A:A,C45) -> 0 | C45: 10102.00001 | D45: 010102 | F45: 1e-06 | G45: 9 | P45: 0 | S45: 0 | W45: 0
A46: 0 | B46: =COUNTIF(Anb!A:A,C46) -> 0 | C46: 10102.00001 | D46: 010102 | F46: 1e-06 | G46: 10 | P46: 0 | S46: 0 | W46: 0
A47: 0 | B47: =COUNTIF(Anb!A:A,C47) -> 0 | C47: 10102.00001 | D47: 010102 | F47: 1e-06 | G47: 11 | P47: 0 | S47: 0 | W47: 0
A48: 0 | B48: =COUNTIF(Anb!A:A,C48) -> 0 | C48: 10102.00001 | D48: 010102 | F48: 1e-06 | G48: 12 | P48: 0 | S48: 0 | W48: 0
A49: 0 | B49: =COUNTIF(Anb!A:A,C49) -> 0 | C49: 10102.00001 | D49: 010102 | F49: 1e-06 | G49: 13 | P49: 0 | S49: 0 | W49: 0
A50: 0 | B50: =COUNTIF(Anb!A:A,C50) -> 0 | C50: 10102.00001 | D50: 010102 | F50: 1e-06 | G50: 14 | P50: 0 | S50: 0 | W50: 0
A51: 0 | B51: =COUNTIF(Anb!A:A,C51) -> 0 | C51: 10102.00001 | D51: 010102 | F51: 1e-06 | G51: 15 | P51: 0 | S51: 0 | W51: 0
A52: 0 | B52: =COUNTIF(Anb!A:A,C52) -> 0 | C52: 10102.00002 | D52: 010102 | F52: 1e-06 | G52: 16 | P52: 0 | S52: 0 | W52: 0
A53: 0 | B53: =COUNTIF(Anb!A:A,C53) -> 0 | C53: 10102.00002 | D53: 010102 | F53: 1e-06 | G53: 17 | P53: 0 | S53: 0 | W53: 0
A54: 0 | B54: =COUNTIF(Anb!A:A,C54) -> 0 | C54: 10102.00002 | D54: 010102 | F54: 1e-06 | G54: 18 | P54: 0 | S54: 0 | W54: 0
A55: 0 | B55: =COUNTIF(Anb!A:A,C55) -> 0 | C55: 10102.00002 | D55: 010102 | F55: 1e-06 | G55: 19 | P55: 0 | S55: 0 | W55: 0
A56: 0 | B56: =COUNTIF(Anb!A:A,C56) -> 0 | C56: 10102.00002 | D56: 010102 | F56: 1e-06 | G56: 20 | P56: 0 | S56: 0 | W56: 0
A57: 0 | B57: =COUNTIF(Anb!A:A,C57) -> 0 | C57: 10102.00002 | D57: 010102 | F57: 1e-06 | G57: 21 | P57: 0 | S57: 0 | W57: 0
A58: 0 | B58: =COUNTIF(Anb!A:A,C58) -> 0 | C58: 10102.00002 | D58: 010102 | F58: 1e-06 | G58: 22 | P58: 0 | S58: 0 | W58: 0
A59: 0 | B59: =COUNTIF(Anb!A:A,C59) -> 0 | C59: 10102.00002 | D59: 010102 | F59: 1e-06 | G59: 23 | P59: 0 | S59: 0 | W59: 0
A60: 0 | B60: =COUNTIF(Anb!A:A,C60) -> 0 | C60: 10102.00002 | D60: 010102 | F60: 1e-06 | G60: 24 | P60: 0 | S60: 0 | W60: 0
A61: 0 | B61: =COUNTIF(Anb!A:A,C61) -> 0 | C61: 10102.00002 | D61: 010102 | F61: 1e-06 | G61: 25 | P61: 0 | S61: 0 | W61: 0
B62: =IF(SUM(B37:B61)>0,2,0) -> 2 | I62: درصد وزنی | L62: =ROUND(IFERROR(P62/P112,0),4) -> 0.0089 | N62: جمع ماشين آلات | P62: =SUM(P37:P61) -> 92.008 | U62: 0 | V62: 0 | W62: 0 | Y62: 0 | Z62: 0
B63: =B64 -> 0 | I63: رديف | J63: کد عامل | K63: مصالح | L63: واحد | M63: =M36 -> مقیاس1 | N63: =N36 -> مقدار/مقیاس | O63: =O36 -> بهای واحد عامل | P63: بهاي کل | U63: 0 | V63: 0 | W63: 0 | Y63: 0 | Z63: 0
A64: =B64*C64 -> 0 | B64: =COUNTIF(Anb!A:A,C64) -> 0 | C64: =D64+(G64*F64) -> 10102.0001 | D64: =$E$7 -> 010102 | F64: 0.0001 | G64: 1 | I64: =VLOOKUP(A64,AnalizDB,16,0) ->  | J64: =VLOOKUP(A64,AnalizDB,13,0) ->  | K64: =VLOOKUP(A64,AnalizDB,12,0) ->  | L64: =VLOOKUP(A64,AnalizDB,11,0) ->  | M64: =VLOOKUP(A64,AnalizDB,$S$5,0) ->  | N64: =VLOOKUP(A64,AnalizDB,$S$6,0) ->  | O64: =VLOOKUP(J64,ManabehDB,$S$7,0) ->  | P64: =IFERROR(O64*N64*M64,0) -> 0 | Q64: =VLOOKUP(A64,AnalizDB,10,0)*$Q$8 ->  | S64: =IFERROR(O64*N64*T64,0) -> 0 | T64: =VLOOKUP(A64,AnalizDB,7,0) ->  | W64: 0 | X64: =VLOOKUP(A64,AnalizDB,3,0) -> 
A65: 0 | B65: =COUNTIF(Anb!A:A,C65) -> 0 | C65: 10102.0002 | D65: 010102 | F65: 0.0001 | G65: 2 | P65: 0 | S65: =IFERROR(O65*N65*T65,0) -> 0 | W65: 0
A66: 0 | B66: =COUNTIF(Anb!A:A,C66) -> 0 | C66: 10102.0003 | D66: 010102 | F66: 0.0001 | G66: 3 | P66: 0 | S66: 0 | W66: 0
A67: 0 | B67: =COUNTIF(Anb!A:A,C67) -> 0 | C67: 10102.0004 | D67: 010102 | F67: 0.0001 | G67: 4 | P67: 0 | S67: 0 | W67: 0
A68: 0 | B68: =COUNTIF(Anb!A:A,C68) -> 0 | C68: 10102.0005 | D68: 010102 | F68: 0.0001 | G68: 5 | P68: 0 | S68: 0 | W68: 0
A69: 0 | B69: =COUNTIF(Anb!A:A,C69) -> 0 | C69: 10102.0006 | D69: 010102 | F69: 0.0001 | G69: 6 | P69: 0 | S69: 0 | W69: 0
A70: 0 | B70: =COUNTIF(Anb!A:A,C70) -> 0 | C70: 10102.0007 | D70: 010102 | F70: 0.0001 | G70: 7 | P70: 0 | S70: 0 | W70: 0
A71: 0 | B71: =COUNTIF(Anb!A:A,C71) -> 0 | C71: 10102.0008 | D71: 010102 | F71: 0.0001 | G71: 8 | P71: 0 | S71: 0 | W71: 0
A72: 0 | B72: =COUNTIF(Anb!A:A,C72) -> 0 | C72: 10102.0009 | D72: 010102 | F72: 0.0001 | G72: 9 | P72: 0 | S72: 0 | W72: 0
A73: 0 | B73: =COUNTIF(Anb!A:A,C73) -> 0 | C73: 10102.001 | D73: 010102 | F73: 0.0001 | G73: 10 | P73: 0 | S73: 0 | W73: 0
A74: 0 | B74: =COUNTIF(Anb!A:A,C74) -> 0 | C74: 10102.0011 | D74: 010102 | F74: 0.0001 | G74: 11 | P74: 0 | S74: 0 | U74: =$S$114*T74 ->  | V74: =$V$6*U74 ->  | W74: 0
A75: 0 | B75: =COUNTIF(Anb!A:A,C75) -> 0 | C75: 10102.0012 | D75: 010102 | F75: 0.0001 | G75: 12 | P75: 0 | S75: 0 | W75: =IFERROR(X75*O75,0) -> 0 | Y75: =$W$114*X75 -> 
A76: 0 | B76: =COUNTIF(Anb!A:A,C76) -> 0 | C76: 10102.0013 | D76: 010102 | F76: 0.0001 | G76: 13 | P76: 0 | S76: 0 | W76: 0 | Z76: =Y76*$V$6 -> 
A77: 0 | B77: =COUNTIF(Anb!A:A,C77) -> 0 | C77: 10102.0014 | D77: 010102 | F77: 0.0001 | G77: 14 | P77: 0 | S77: 0 | W77: 0
A78: 0 | B78: =COUNTIF(Anb!A:A,C78) -> 0 | C78: 10102.0015 | D78: 010102 | F78: 0.0001 | G78: 15 | P78: 0 | S78: 0 | W78: 0
A79: 0 | B79: =COUNTIF(Anb!A:A,C79) -> 0 | C79: 10102.0016 | D79: 010102 | F79: 0.0001 | G79: 16 | P79: 0 | S79: 0 | W79: 0
A80: 0 | B80: =COUNTIF(Anb!A:A,C80) -> 0 | C80: 10102.0017 | D80: 010102 | F80: 0.0001 | G80: 17 | P80: 0 | S80: 0 | W80: 0
A81: 0 | B81: =COUNTIF(Anb!A:A,C81) -> 0 | C81: 10102.0018 | D81: 010102 | F81: 0.0001 | G81: 18 | P81: 0 | S81: 0 | W81: 0
A82: 0 | B82: =COUNTIF(Anb!A:A,C82) -> 0 | C82: 10102.0019 | D82: 010102 | F82: 0.0001 | G82: 19 | P82: 0 | S82: 0 | W82: 0
A83: 0 | B83: =COUNTIF(Anb!A:A,C83) -> 0 | C83: 10102.002 | D83: 010102 | F83: 0.0001 | G83: 20 | P83: 0 | S83: 0 | W83: 0
A84: 0 | B84: =COUNTIF(Anb!A:A,C84) -> 0 | C84: 10102.0021 | D84: 010102 | F84: 0.0001 | G84: 21 | P84: 0 | S84: 0 | W84: 0
A85: 0 | B85: =COUNTIF(Anb!A:A,C85) -> 0 | C85: 10102.0022 | D85: 010102 | F85: 0.0001 | G85: 22 | P85: 0 | S85: 0 | W85: 0
A86: 0 | B86: =COUNTIF(Anb!A:A,C86) -> 0 | C86: 10102.0023 | D86: 010102 | F86: 0.0001 | G86: 23 | P86: 0 | S86: 0 | W86: 0
A87: 0 | B87: =COUNTIF(Anb!A:A,C87) -> 0 | C87: 10102.0024 | D87: 010102 | F87: 0.0001 | G87: 24 | P87: 0 | S87: 0 | W87: 0
A88: 0 | B88: =COUNTIF(Anb!A:A,C88) -> 0 | C88: 10102.0025 | D88: 010102 | F88: 0.0001 | G88: 25 | P88: 0 | S88: 0 | W88: 0
B89: =IF(SUM(B64:B88)>0,2,0) -> 0 | I89: درصد وزنی | L89: =ROUND(IFERROR(P89/P112,0),4) -> 0 | N89: جمع مصالح | P89: =SUM(P64:P88) -> 0 | U89: 0 | V89: 0 | W89: 0 | Y89: 0 | Z89: 0
B90: =B91 -> 0 | I90: رديف | J90: کد عامل | K90: حمل مصالح | L90: واحد | M90: =M63 -> مقیاس1 | N90: =N63 -> مقدار/مقیاس | O90: =O63 -> بهای واحد عامل | P90: بهاي کل | U90: 0 | V90: 0 | W90: 0 | Y90: 0 | Z90: 0
A91: =B91*C91 -> 0 | B91: =COUNTIF(Anb!A:A,C91) -> 0 | C91: =D91+(G91*F91) -> 10102.01 | D91: =$E$7 -> 010102 | F91: 0.01 | G91: 1 | I91: =VLOOKUP(A91,AnalizDB,16,0) ->  | J91: =VLOOKUP(A91,AnalizDB,13,0) ->  | K91: =VLOOKUP(A91,AnalizDB,12,0) ->  | L91: =VLOOKUP(A91,AnalizDB,11,0) ->  | M91: =VLOOKUP(A91,AnalizDB,$S$5,0) ->  | N91: =VLOOKUP(A91,AnalizDB,$S$6,0) ->  | O91: =VLOOKUP(J91,ManabehDB,$S$7,0) ->  | P91: =IFERROR(O91*N91*M91,0) -> 0 | Q91: =VLOOKUP(A91,AnalizDB,10,0)*$Q$8 ->  | S91: =IFERROR(O91*N91*T91,0) -> 0 | T91: =VLOOKUP(A91,AnalizDB,7,0) ->  | W91: 0 | X91: =VLOOKUP(A91,AnalizDB,3,0) -> 
A92: 0 | B92: =COUNTIF(Anb!A:A,C92) -> 0 | C92: 10102.02 | D92: 010102 | F92: 0.01 | G92: 2 | P92: 0 | S92: 0 | W92: 0
A93: 0 | B93: =COUNTIF(Anb!A:A,C93) -> 0 | C93: 10102.03 | D93: 010102 | F93: 0.01 | G93: 3 | P93: 0 | S93: 0 | W93: 0
A94: 0 | B94: =COUNTIF(Anb!A:A,C94) -> 0 | C94: 10102.04 | D94: 010102 | F94: 0.01 | G94: 4 | P94: 0 | S94: 0 | W94: 0
A95: 0 | B95: =COUNTIF(Anb!A:A,C95) -> 0 | C95: 10102.05 | D95: 010102 | F95: 0.01 | G95: 5 | P95: 0 | S95: 0 | W95: 0
A96: 0 | B96: =COUNTIF(Anb!A:A,C96) -> 0 | C96: 10102.06 | D96: 010102 | F96: 0.01 | G96: 6 | P96: 0 | S96: 0 | W96: 0
A97: 0 | B97: =COUNTIF(Anb!A:A,C97) -> 0 | C97: 10102.07 | D97: 010102 | F97: 0.01 | G97: 7 | P97: 0 | S97: 0 | W97: 0
A98: 0 | B98: =COUNTIF(Anb!A:A,C98) -> 0 | C98: 10102.08 | D98: 010102 | F98: 0.01 | G98: 8 | P98: 0 | S98: 0 | W98: 0
A99: 0 | B99: =COUNTIF(Anb!A:A,C99) -> 0 | C99: 10102.09 | D99: 010102 | F99: 0.01 | G99: 9 | P99: 0 | S99: 0 | W99: 0
A100: 0 | B100: =COUNTIF(Anb!A:A,C100) -> 0 | C100: 10102.1 | D100: 010102 | F100: 0.01 | G100: 10 | P100: 0 | S100: 0 | W100: 0
A101: 0 | B101: =COUNTIF(Anb!A:A,C101) -> 0 | C101: 10102.11 | D101: 010102 | F101: 0.01 | G101: 11 | P101: 0 | S101: 0 | W101: 0
A102: 0 | B102: =COUNTIF(Anb!A:A,C102) -> 0 | C102: 10102.12 | D102: 010102 | F102: 0.01 | G102: 12 | P102: 0 | S102: 0 | W102: 0
A103: 0 | B103: =COUNTIF(Anb!A:A,C103) -> 0 | C103: 10102.13 | D103: 010102 | F103: 0.01 | G103: 13 | P103: 0 | S103: 0 | W103: 0
A104: 0 | B104: =COUNTIF(Anb!A:A,C104) -> 0 | C104: 10102.14 | D104: 010102 | F104: 0.01 | G104: 14 | P104: 0 | S104: 0 | W104: 0
A105: 0 | B105: =COUNTIF(Anb!A:A,C105) -> 0 | C105: 10102.15 | D105: 010102 | F105: 0.01 | G105: 15 | P105: 0 | S105: 0 | W105: 0
A106: 0 | B106: =COUNTIF(Anb!A:A,C106) -> 0 | C106: 10102.16 | D106: 010102 | F106: 0.01 | G106: 16 | P106: 0 | S106: 0 | U106: =$S$114*T106 ->  | V106: =$V$6*U106 ->  | W106: 0
A107: 0 | B107: =COUNTIF(Anb!A:A,C107) -> 0 | C107: 10102.17 | D107: 010102 | F107: 0.01 | G107: 17 | P107: 0 | S107: 0 | U107: =$S$114*T107 ->  | V107: =$V$6*U107 ->  | W107: 0
A108: 0 | B108: =COUNTIF(Anb!A:A,C108) -> 0 | C108: 10102.18 | D108: 010102 | F108: 0.01 | G108: 18 | P108: 0 | S108: 0 | U108: =$S$114*T108 ->  | V108: =$V$6*U108 ->  | W108: 0
A109: 0 | B109: =COUNTIF(Anb!A:A,C109) -> 0 | C109: 10102.19 | D109: 010102 | F109: 0.01 | G109: 19 | P109: 0 | S109: 0 | U109: =$S$114*T109 ->  | V109: =$V$6*U109 ->  | W109: 0
A110: 0 | B110: =COUNTIF(Anb!A:A,C110) -> 0 | C110: 10102.2 | D110: 010102 | F110: 0.01 | G110: 20 | P110: 0 | S110: 0 | U110: =$S$114*T110 ->  | V110: =$V$6*U110 ->  | W110: 0
B111: =IF(SUM(B86:B110)>0,2,0) -> 0 | I111: درصد به قیمت ردیف | L111: =ROUND(IFERROR(P111/P112,0),4) -> 0 | N111: جمع حمل مصالح | P111: =SUM(P91:P110) -> 0
B112: 2 | I112: =" شماره رديف يا رديفهاي معادل : "&E7 -> شماره رديف يا رديفهاي معادل : 010102 | L112: بهای واحد کار: | P112: =P111+P89+P62+P35 -> 10316.092 | R112: قيمت آناليز | S112: =SUM(S10:S111) -> 10316.092 | V112: قيمت آناليز | W112: =SUM(W10:W111) -> 10316.092
B113: =B112 -> 2 | I113: بهای واحد رديف : | K113: =VLOOKUP(E7,ItemMetreh,4,0) -> 10300 | L113: مقايسه پيشنهاد نسبت به برآورد (درصد) ± | P113: =ROUND((P112/VLOOKUP(E7,ItemMetreh,4,0))-1,5) -> 0.00156 | R113: قيمت رديف | S113: =K113 -> 10300 | V113: قيمت رديف | W113: =K113 -> 10300
B114: =B113 -> 2 | I114: بهای کل کار: | K114: =K113*VLOOKUP(E7,metreh,8,0) -> 206000 | L114: بهای کل کار: | P114: =VLOOKUP(E7,metreh,8,0)*P112 -> 206321.84 | S114: =S113/S112 -> 0.998440107 | W114: =W113/W112 -> 0.998440107
B115: =B114 -> 2 | I115: پ

Sheet D2 (hidden)
B1: نسخه نمایشی فهرست بهای واحد پایه رشته ابنیه رسته ساختمان سال 97 | C1: فهرست بهای ابنیه 97 | F1: شماره فصل | G1: شرح فصل
A2: شماره | B2: شـرح فهرست بها | C2: واحـد | D2: بهاي واحد | F2: 1 | G2: فصل 1 . عملیات تخریب
A3: 010101 | B3: بوته کني در زمينهاي پوشيده شده از بوته و خارج کردن ريشه‌هاي آن از محل عمليات. | C3: مترمربع | D3: 215 | F3: 2 | G3: فصل 2 . عملیات خاکی بادست
A4: 010102 | B4: کندن و يا بريدن و در صورت لزوم ريشه کن کردن درخت از هر نوع، در صورتي که محيط تنه درخت در سطح زمين تا 15 سانتي متر باشد، به ازاي هر 5 سانتي متر محيط تنه (کسر 5 سانتي متر به تناسب محاسبه مي‌شود) و حمل آن به خارج محل عمليات. | C4: اصله | D4: 10300 | F4: 3 | G4: فصل 3 . عملیات خاکی باماشین
A5: 010111 | B5: پر کردن و کوبيدن جاي ريشه با خاک مناسب در صورتي که محيط تنه درخت در سطح زمين تا 15 سانتي متر باشد به ازاي هر 5 سانتي متر محيط تنه (کسر 5 سانتيمتر، به تناسـب محاسبه مي شود.). | C5: اصله | D5: 8160 | F5: 4 | G5: فصل 4 . عملیات بنایی باسنگ
A6: 010112 | B6: پر کردن و کوبيدن جاي ريشه با خاک مناسب در صورتي که محيط تنه درخت در سطح زمين بيش از 15 تا 30 سانتي متر باشد. | C6: اصله | D6: 40500 | F6: 5 | G6: فصل 5 . قالب بندی چوبی
A7: 010113 | B7: پر کردن و کوبيدن جاي ريشه با خاک مناسب در صورتي که محيط تنه درخت در سطح زمين بيش از 30 تا 60 سانتي متر باشد. | C7: اصله | D7: 134000 | F7: 6 | G7: فصل 6 . قالب بندی فلزی
A8: 010114 | B8: پر کردن و کوبيدن جاي ريشه با خاک مناسب در صورتي که محيط تنه درخت در سطح زمين بيش از 60 تا 90 سانتي متر باشد. | C8: اصله | D8: 214500 | F8: 7 | G8: فصل 7 . کارهای فولادی بامیلگرد
A9: 010115 | B9: اضافه بها به رديـف 010114، به ازاي هر 10 سانتيمتر که به محيط تنه درخـت اضافه شود (کسر 10 سانتيمتر، به تناسـب محاسبه مي شود). | C9: اصله | D9: 24100 | F9: 8 | G9: فصل 8 . بتن درجا
F10: 9 | G10: فصل 9 . کارهای فولادی سنگین
F11: 10 | G11: فصل 10 . سقف سبک بتنی
F12: 11 | G12: فصل 11 . آجرکاری وشفته ریزی
F13: 12 | G13: فصل 12 . بتن پیش ساخته وبلوک چینی
F14: 13 | G14: فصل 13 . عایق کاری رطوبتی
F15: 14 | G15: فصل 14 . عایق کاری حرارتی
F16: 15 | G16: فصل 15 . کارهای آزبست سیمان
F17: 16 | G17: فصل 16 . کارهای فولادی سبک
F18: 17 | G18: فصل 17 . کارهای آلومینیومی
F19: 18 | G19: فصل 18 . اندودکاری و بندکشی
F20: 19 | G20: فصل 19 . کارهای چوبی
F21: 20 | G21: فصل 20 . کاشی وسرامیک کاری
F22: 21 | G22: فصل 21 . فرش کف باموزاییک
F23: 22 | G23: فصل 22 . کارهای سنگی باسنگ پلاک
F24: 23 | G24: فصل 23 . کارهای پلاستیکی و پلیمری
F25: 24 | G25: فصل 24 . برش ونصب شیشه
F26: 25 | G26: فصل 25 . رنگ آمیزی
F27: 26 | G27: فصل 26 . زیراساس واساس
F28: 27 | G28: فصل 27 . آسفالت
F29: 28 | G29: فصل 28 . حمل ونقل
F30: 29 | G30: فصل 29 . کارهای دستمزدی
F31: 41 | G31: فصل 41 . مصالح پایکار
F32: 42 | G32: فصل 42 . تجهیز و برچیدن کارگاه

Sheet Anb (hidden)
L1: نيروي انساني | M1: 1e-08
L2: ماشين آلات | M2: 1e-06
L3: مصالح | M3: 0.0001
L4: حمل مصالح | M4: 0.01
N5: 010101 | Q5: =IF(N5>0,N5,Q4) -> 010101
L6: مترمربع | O6: واحـد : | Q6: =IF(N6>0,N6,Q5) -> 010101
A7: کد فراخوانی | C7: مقدار/مقیاس | D7: مقیاس | E7: بهای کل | G7: ضريب | I7: بهاي واحد | J7: مقـدار | K7: واحــد | L7: ماشين آلات | O7: رديف | Q7: 010101 | R7: =IF(IF(O7="رديف",VLOOKUP(L7,Kod,2,0),0)=0,R6,IF(O7="رديف",VLOOKUP(L7,Kod,2,0),0)) -> 1e-06
A8: =IF(M8<>"",Q8+(P8*R8),"") -> 10101 | C8: 0.0005 | D8: 1 | E8: 212.082 | G8: 1 | I8: 424164 | J8: 0.0005 | K8: دستگاه-ساعت | L8: گریدر به قدرت حدود180 اسب بخار باراننده | M8: 25010902 | O8: 1 | P8: =COUNTIF($S$1:S8,Q8+R8) -> 1 | Q8: 010101 | R8: 1e-06 | S8: =IF(M8<>"",Q8+R8,"") -> 10101
A9: =IF(M9<>"",Q9+(P9*R9),"") ->  | N9: 010102 | P9: =COUNTIF($S$1:S9,Q9+R9) -> 0 | Q9: 010102 | R9: 1e-06 | S9: =IF(M9<>"",Q9+R9,"") -> 
L10: اصله | O10: واحـد : | P10: =COUNTIF($S$1:S10,Q10+R10) -> 0 | Q10: 010102 | R10: 1e-06
G11: ضريب | I11: بهاي واحد | J11: مقـدار | K11: واحــد | L11: نيروي انساني | O11: رديف | P11: =COUNTIF($S$1:S11,Q11+R11) -> 0 | Q11: 010102 | R11: 1e-08
A12: 10102 | C12: 0.105 | D12: 1 | E12: 5986.365 | G12: 1 | I12: 57013 | J12: 0.105 | K12: نفر- ساعت | L12: كارگر ساده | M12: 14010102 | O12: 1 | P12: =COUNTIF($S$1:S12,Q12+R12) -> 1 | Q12: 010102 | R12: 1e-08 | S12: 10102
A13: 10102 | C13: 0.0105 | D13: 1 | E13: 1041.978 | G13: 1 | I13: 99236 | J13: 0.0105 | K13: نفر ساعت | L13: نجار در و پنجره ساز درجه یک | M13: 14120101 | O13: 2 | P13: =COUNTIF($S$1:S13,Q13+R13) -> 2 | Q13: 010102 | R13: 1e-08 | S13: 10102
A14: 10102 | C14: 0.053 | D14: 1 | E14: 3195.741 | G14: 1 | I14: 60297 | J14: 0.053 | K14: نفر - ساعت | L14: کمک نجار | M14: 14120401 | O14: 3 | P14: =COUNTIF($S$1:S14,Q14+R14) -> 3 | Q14: 010102 | R14: 1e-08 | S14: 10102
G15: ضريب | I15: بهاي واحد | J15: مقـدار | K15: واحــد | L15: ماشين آلات | O15: رديف | P15: =COUNTIF($S$1:S15,Q15+R15) -> 0 | Q15: 010102 | R15: 1e-06
A16: 10102 | C16: 0.053 | D16: 1 | E16: 92.008 | G16: 1 | I16: 1736 | J16: 0.053 | K16: دستگاه ساعت | L16: اره بنزینی متحرک چوب | M16: 28060203 | O16: 1 | P16: =COUNTIF($S$1:S16,Q16+R16) -> 1 | Q16: 010102 | R16: 1e-06 | S16: 10102
N17: 010111 | P17: =COUNTIF($S$1:S17,Q17+R17) -> 0 | Q17: 010111 | R17: 1e-06
L18: اصله | O18: واحـد : | P18: =COUNTIF($S$1:S18,Q18+R18) -> 0 | Q18: 010111 | R18: 1e-06
G19: ضريب | I19: بهاي واحد | J19: مقـدار | K19: واحــد | L19: نيروي انساني | O19: رديف | P19: =COUNTIF($S$1:S19,Q19+R19) -> 0 | Q19: 010111 | R19: 1e-08
A20: 10111 | C20: 0.052 | D20: 1 | E20: 3644.784 | G20: 1 | I20: 70092 | J20: 0.052 | K20: نفر ساعت | L20: متصدی غلطکهای دستی | M20: 13040901 | O20: 1 | P20: =COUNTIF($S$1:S20,Q20+R20) -> 1 | Q20: 010111 | R20: 1e-08 | S20: 10111
A21: 10111 | C21: 0.00052 | D21: 1 | E21: 34.359 | G21: 1 | I21: 66075 | J21: 0.00052 | K21: نفر ساعت | L21: سر کارگر | M21: 14010101 | O21: 2 | P21: =COUNTIF($S$1:S21,Q21+R21) -> 2 | Q21: 010111 | R21: 1e-08 | S21: 10111
A22: 10111 | C22: 0.0052 | D22: 1 | E22: 296.4676 | G22: 1 | I22: 57013 | J22: 0.0052 | K22: نفر- ساعت | L22: كارگر ساده | M22: 14010102 | O22: 3 | P22: =COUNTIF($S$1:S22,Q22+R22) -> 3 | Q22: 010111 | R22: 1e-08 | S22: 10111
G23: ضريب | I23: بهاي واحد | J23: مقـدار | K23: واحــد | L23: ماشين آلات | O23: رديف | P23: =COUNTIF($S$1:S23,Q23+R23) -> 0 | Q23: 010111 | R23: 1e-06
A24: 10111 | C24: 0.0048 | D24: 1 | E24: 1664.064 | G24: 1 | I24: 346680 | J24: 0.0048 | K24: دستگاه-ساعت | L24: کامیون کمپرسی به ظرفیت حدود 10 تن با راننده | M24: 23020204 | O24: 1 | P24: =COUNTIF($S$1:S24,Q24+R24) -> 1 | Q24: 010111 | R24: 1e-06 | S24: 10111
A25: 10111 | C25: 0.0011 | D25: 1 | E25: 366.0943 | G25: 1 | I25: 332813 | J25: 0.0011 | K25: ساعت | L25: بولدوزر به قدرت حدود 150 اسب بخار با راننده | M25: 25010602 | O25: 2 | P25: =COUNTIF($S$1:S25,Q25+R25) -> 2 | Q25: 010111 | R25: 1e-06 | S25: 10111
A26: 10111 | C26: 0.00054 | D26: 1 | E26: 262.09008 | G26: 1 | I26: 485352 | J26: 0.00054 | K26: دستگاه-ساعت | L26: بولدوزر به قدرت حدود 200 اسب بخار باراننده | M26: 25010603 | O26: 3 | P26: =COUNTIF($S$1:S26,Q26+R26) -> 3 | Q26: 010111 | R26: 1e-06 | S26: 10111
A27: 10111 | C27: 0.0017 | D27: 1 | E27: 618.0554 | G27: 1 | I27: 363562 | J27: 0.0017 | K27: دستگاه-ساعت | L27: لودرچرخ لاستيکي به قدرت حدود150 اسب بخار باراننده | M27: 25010802 | O27: 4 | P27: =COUNTIF($S$1:S27,Q27+R27) -> 4 | Q27: =IF(N27>0,N27,Q26) -> 010111 | R27: 1e-06 | S27: =IF(M27<>"",Q27+R27,"") -> 10111
A28: 10111 | C28: 0.052 | D28: 1 | E28: 1040.156 | G28: 1 | I28: 20003 | J28: 0.052 | K28: دستگاه-ساعت | L28: کمپکتورصفحه ای | M28: 25030101 | O28: 5 | P28: =COUNTIF($S$1:S28,Q28+R28) -> 5 | Q28: 010111 | R28: 1e-06 | S28: 10111
A29: 10111.00001 | C29: 0.0002 | D29: 1 | E29: 33 | G29: 1 | I29: 165000 | J29: 0.0002 | K29: عدد | L29: بیل | M29: 28070101 | O29: 6 | P29: =COUNTIF($S$1:S29,Q29+R29) -> 6 | Q29: 010111 | R29: 1e-06 | S29: 10111
G30: ضريب | I30: بهاي واحد | J30: مقـدار | K30: واحــد | L30: مصالح | O30: رديف | P30: =COUNTIF($S$1:S30,Q30+R30) -> 0 | Q30: 010111 | R30: 0.0001
A31: 10111.0001 | C31: 0.007 | D31: 1 | E31: 75.6 | G31: 1 | I31: 10800 | J31: 0.007 | K31: مترمكعب | L31: آب لوله کشی شهری | M31: 31010101 | O31: 1 | P31: =COUNTIF($S$1:S31,Q31+R31) -> 1 | Q31: 010111 | R31: 0.0001 | S31: 10111.0001
A32: 10111.0002 | C32: 0.003 | D32: 1 | E32: 28.413 | G32: 1 | I32: 9471 | J32: 0.003 | K32: مترمكعب | L32: آب چاه و قنات | M32: 31010301 | O32: 2 | P32: =COUNTIF($S$1:S32,Q32+R32) -> 2 | Q32: 010111 | R32: 0.0001 | S32: 10111.0001
G33: ضريب | I33: بهاي واحد | J33: مقـدار | K33: واحــد | L33: حمل مصالح | O33: رديف | P33: =COUNTIF($S$1:S33,Q33+R33) -> 0 | Q33: 010111 | R33: 0.01
A34: 10111.01 | C34: 0.003 | D34: 1 | E34: 99.639 | G34: 1 | I34: 33213 | J34: 0.003 | K34: مترمكعب | L34: حمل آب چاه قنات و رودخانه | M34: 41010101 | O34: 1 | P34: =COUNTIF($S$1:S34,Q34+R34) -> 1 | Q34: 010111 | R34: 0.01 | S34: 10111.01
N35: 010112 | P35: =COUNTIF($S$1:S35,Q35+R35) -> 0 | Q35: 010112 | R35: 0.01
L36: اصله | O36: واحـد : | P36: =COUNTIF($S$1:S36,Q36+R36) -> 0 | Q36: 010112 | R36: 0.01
G37: ضريب | I37: بهاي واحد | J37: مقـدار | K37: واحــد | L37: نيروي انساني | O37: رديف | P37: =COUNTIF($S$1:S37,Q37+R37) -> 0 | Q37: 010112 | R37: 1e-08
A38: 10112 | C38: 0.2579 | D38: 1 | E38: 18076.7268 | G38: 1 | I38: 70092 | J38: 0.2579 | K38: نفر ساعت | L38: متصدی غلطکهای دستی | M38: 13040901 | O38: 1 | P38: =COUNTIF($S$1:S38,Q38+R38) -> 1 | Q38: 010112 | R38: 1e-08 | S38: 10112
A39: 10112 | C39: 0.0026 | D39: 1 | E39: 171.795 | G39: 1 | I39: 66075 | J39: 0.0026 | K39: نفر ساعت | L39: سر کارگر | M39: 14010101 | O39: 2 | P39: =COUNTIF($S$1:S39,Q39+R39) -> 2 | Q39: 010112 | R39: 1e-08 | S39: 10112
A40: 10112 | C40: 0.026 | D40: 1 | E40: 1482.338 | G40: 1 | I40: 57013 | J40: 0.026 | K40: نفر- ساعت | L40: كارگر ساده | M40: 14010102 | O40: 3 | P40: =COUNTIF($S$1:S40,Q40+R40) -> 3 | Q40: 010112 | R40: 1e-08 | S40: 10112
G41: ضريب | I41: بهاي واحد | J41: مقـدار | K41: واحــد | L41: ماشين آلات | O41: رديف | P41: =COUNTIF($S$1:S41,Q41+R41) -> 0 | Q41: 010112 | R41: 1e-06
A42: 10112 | C42: 0.024 | D42: 1 | E42: 8320.32 | G42: 1 | I42: 346680 | J42: 0.024 | K42: دستگاه-ساعت | L42: کامیون کمپرسی به ظرفیت حدود 10 تن با راننده | M42: 23020204 | O42: 1 | P42: =COUNTIF($S$1:S42,Q42+R42) -> 1 | Q42: 010112 | R42: 1e-06 | S42: 10112
A43: 10112 | C43: 0.0053 | D43: 1 | E43: 1763.9089 | G43: 1 | I43: 332813 | J43: 0.0053 | K43: ساعت | L43: بولدوزر به قدرت حدود 150 اسب بخار با راننده | M43: 25010602 | O43: 2 | P43: =COUNTIF($S$1:S43,Q43+R43) -> 2 | Q43: 010112 | R43: 1e-06 | S43: 10112
A44: 10112 | C44: 0.0027 | D44: 1 | E44: 1310.4504 | G44: 1 | I44: 485352 | J44: 0.0027 | K44: دستگاه-ساعت | L44: بولدوزر به قدرت حدود 200 اسب بخار باراننده | M44: 25010603 | O44: 3 | P44: =COUNTIF($S$1:S44,Q44+R44) -> 3 | Q44: 010112 | R44: 1e-06 | S44: 10112
A45: 10112 | C45: 0.0084 | D45: 1 | E45: 3053.9208 | G45: 1 | I45: 363562 | J45: 0.0084 | K45: دستگاه-ساعت | L45: لودرچرخ لاستيکي به قدرت حدود150 اسب بخار باراننده | M45: 25010802 | O45: 4 | P45: =COUNTIF($S$1:S45,Q45+R45) -> 4 | Q45: 010112 | R45: 1e-06 | S45: 10112
A46: 10112 | C46: 0.2579 | D46: 1 | E46: 5158.7737 | G46: 1 | I46: 20003 | J46: 0.2579 | K46: دستگاه-ساعت | L46: کمپکتورصفحه ای | M46: 25030101 | O46: 5 | P46: =COUNTIF($S$1:S46,Q46+R46) -> 5 | Q46: 010112 | R46: 1e-06 | S46: 10112
A47: 10112.00001 | C47: 0.00085 | D47: 1 | E47: 140.25 | G47: 1 | I47: 165000 | J47: 0.00085 | K47: عدد | L47: بیل | M47: 28070101 | O47: 6 | P47: =COUNTIF($S$1:S47,Q47+R47) -> 6 | Q47: 010112 | R47: 1e-06 | S47: 10112
G48: ضريب | I48: بهاي واحد | J48: مقـدار | K48: واحــد | L48: مصالح | O48: رديف | P48: =COUNTIF($S$1:S48,Q48+R48) -> 0 | Q48: 010112 | R48: 0.0001
A49: 10112.0001 | C49: 0.035 | D49: 1 | E49: 378 | G49: 1 | I49: 10800 | J49: 0.035 | K49: مترمكعب | L49: آب لوله کشی شهری | M49: 31010101 | O49: 1 | P49: =COUNTIF($S$1:S49,Q49+R49) -> 1 | Q49: 010112 | R49: 0.0001 | S49: 10112.0001
A50: 10112.0002 | C50: 0.015 | D50: 1 | E50: 142.065 | G50: 1 | I50: 9471 | J50: 0.015 | K50: مترمكعب | L50: آب چاه و قنات | M50: 31010301 | O50: 2 | P50: =COUNTIF($S$1:S50,Q50+R50) -> 2 | Q50: 010112 | R50: 0.0001 | S50: 10112.0001
G51: ضريب | I51: بهاي واحد | J51: مقـدار | K51: واحــد | L51: حمل مصالح | O51: رديف | P51: =COUNTIF($S$1:S51,Q51+R51) -> 0 | Q51: 010112 | R51: 0.01
A52: 10112.01 | C52: 0.015 | D52: 1 | E52: 498.195 | G52: 1 | I52: 33213 | J52: 0.015 | K52: مترمكعب | L52: حمل آب چاه قنات و رودخانه | M52: 41010101 | O52: 1 | P52: =COUNTIF($S$1:S52,Q52+R52) -> 1 | Q52: 010112 | R52: 0.01 | S52: 10112.01
N53: 010113 | P53: =COUNTIF($S$1:S53,Q53+R53) -> 0 | Q53: 010113 | R53: 0.01
L54: اصله | O54: واحـد : | P54: =COUNTIF($S$1:S54,Q54+R54) -> 0 | Q54: 010113 | R54: 0.01
G55: ضريب | I55: بهاي واحد | J55: مقـدار | K55: واحــد | L55: نيروي انساني | O55: رديف | P55: =COUNTIF($S$1:S55,Q55+R55) -> 0 | Q55: 010113 | R55: 1e-08
A56: 10113 | C56: 0.851 | D56: 1 | E56: 59648.292 | G56: 1 | I56: 70092 | J56: 0.851 | K56: نفر ساعت | L56: متصدی غلطکهای دستی | M56: 13040901 | O56: 1 | P56: =COUNTIF($S$1:S56,Q56+R56) -> 1 | Q56: 010113 | R56: 1e-08 | S56: 10113
A57: 10113 | C57: 0.0086 | D57: 1 | E57: 568.245 | G57: 1 | I57: 66075 | J57: 0.0086 | K57: نفر ساعت | L57: سر کارگر | M57: 14010101 | O57: 2 | P57: =COUNTIF($S$1:S57,Q57+R57) -> 2 | Q57: 010113 | R57: 1e-08 | S57: 10113
A58: 10113 | C58: 0.0858 | D58: 1 | E58: 4891.7154 | G58: 1 | I58: 57013 | J58: 0.0858 | K58: نفر- ساعت | L58: كارگر ساده | M58: 14010102 | O58: 3 | P58: =COUNTIF($S$1:S58,Q58+R58) -> 3 | Q58: 010113 | R58: 1e-08 | S58: 10113
G59: ضريب | I59: بهاي واحد | J59: مقـدار | K59: واحــد | L59: ماشين آلات | O59: رديف | P59: =COUNTIF($S$1:S59,Q59+R59) -> 0 | Q59: 010113 | R59: 1e-06
A60: 10113 | C60: 0.0792 | D60: 1 | E60: 27457.056 | G60: 1 | I60: 346680 | J60: 0.0792 | K60: دستگاه-ساعت | L60: کامیون کمپرسی به ظرفیت حدود 10 تن با راننده | M60: 23020204 | O60: 1 | P60: =COUNTIF($S$1:S60,Q60+R60) -> 1 | Q60: 010113 | R60: 1e-06 | S60: 10113
A61: 10113 | C61: 0.0175 | D61: 1 | E61: 5824.2275 | G61: 1 | I61: 332813 | J61: 0.0175 | K61: ساعت | L61: بولدوزر به قدرت حدود 150 اسب بخار با راننده | M61: 25010602 | O61: 2 | P61: =COUNTIF($S$1:S61,Q61+R61) -> 2 | Q61: 010113 | R61: 1e-06 | S61: 10113
A62: 10113 | C62: 0.0089 | D62: 1 | E62: 4319.6328 | G62: 1 | I62: 485352 | J62: 0.0089 | K62: دستگاه-ساعت | L62: بولدوزر به قدرت حدود 200 اسب بخار باراننده | M62: 25010603 | O62: 3 | P62: =COUNTIF($S$1:S62,Q62+R62) -> 3 | Q62: 010113 | R62: 1e-06 | S62: 10113
A63: 10113 | C63: 0.028 | D63: 1 | E63: 10179.736 | G63: 1 | I63: 363562 | J63: 0.028 | K63: دستگاه-ساعت | L63: لودرچرخ لاستيکي به قدرت حدود150 اسب بخار باراننده | M63: 25010802 | O63: 4 | P63: =COUNTIF($S$1:S63,Q63+R63) -> 4 | Q63: 010113 | R63: 1e-06 | S63: 10113
A64: 10113 | C64: 0.851 | D64: 1 | E64: 17022.553 | G64: 1 | I64: 20003 | J64: 0.851 | K64: دستگاه-ساعت | L64: کمپکتورصفحه ای | M64: 25030101 | O64: 5 | P64: =COUNTIF($S$1:S64,Q64+R64) -> 5 | Q64: 010113 | R64: 1e-06 | S64: 10113
A65: 10113.00001 | C65: 0.0028 | D65: 1 | E65: 462 | G65: 1 | I65: 165000 | J65: 0.0028 | K65: عدد | L65: بیل | M65: 28070101 | O65: 6 | P65: =COUNTIF($S$1:S65,Q65+R65) -> 6 | Q65: 010113 | R65: 1e-06 | S65: 10113
G66: ضريب | I66: بهاي واحد | J66: مقـدار | K66: واحــد | L66: مصالح | O66: رديف | P66: =COUNTIF($S$1:S66,Q66+R66) -> 0 | Q66: 010113 | R66: 0.0001
A67: 10113.0001 | C67: 0.11 | D67: 1 | E67: 1188 | G67: 1 | I67: 10800 | J67: 0.11 | K67: مترمكعب | L67: آب لوله کشی شهری | M67: 31010101 | O67: 1 | P67: =COUNTIF($S$1:S67,Q67+R67) -> 1 | Q67: 010113 | R67: 0.0001 | S67: 10113.0001
A68: 10113.0002 | C68: 0.055 | D68: 1 | E68: 520.905 | G68: 1 | I68: 9471 | J68: 0.055 | K68: مترمكعب | L68: آب چاه و قنات | M68: 31010301 | O68: 2 | P68: =COUNTIF($S$1:S68,Q68+R68) -> 2 | Q68: 010113 | R68: 0.0001 | S68: 10113.0001
G69: ضريب | I69: بهاي واحد | J69: مقـدار | K69: واحــد | L69: حمل مصالح | O69: رديف | P69: =COUNTIF($S$1:S69,Q69+R69) -> 0 | Q69: 010113 | R69: 0.01
A70: 10113.01 | C70: 0.055 | D70: 1 | E70: 1826.715 | G70: 1 | I70: 33213 | J70: 0.055 | K70: مترمكعب | L70: حمل آب چاه قنات و رودخانه | M70: 41010101 | O70: 1 | P70: =COUNTIF($S$1:S70,Q70+R70) -> 1 | Q70: 010113 | R70: 0.01 | S70: 10113.01
N71: 010114 | P71: =COUNTIF($S$1:S71,Q71+R71) -> 0 | Q71: 010114 | R71: =IF(IF(O71="رديف",VLOOKUP(L71,Kod,2,0),0)=0,R70,IF(O71="رديف",VLOOKUP(L71,Kod,2,0),0)) -> 0.01
L72: اصله | O72: واحـد : | P72: =COUNTIF($S$1:S72,Q72+R72) -> 0 | Q72: 010114 | R72: 0.01
A73: =IF(M73<>"",Q73+(P73*R73),"") ->  | G73: ضريب | I73: بهاي واحد | J73: مقـدار | K73: واحــد | L73: نيروي انساني | O73: رديف | P73: =COUNTIF($S$1:S73,Q73+R73) -> 0 | Q73: 010114 | R73: 1e-08
A74: 10114 | C74: 1.362 | D74: 1 | E74: 95465.304 | G74: 1 | I74: 70092 | J74: 1.362 | K74: نفر ساعت | L74: متصدی غلطکهای دستی | M74: 13040901 | O74: 1 | P74: =COUNTIF($S$1:S74,Q74+R74) -> 1 | Q74: 010114 | R74: 1e-08 | S74: 10114
A75: 10114 | C75: 0.0138 | D75: 1 | E75: 911.835 | G75: 1 | I75: 66075 | J75: 0.0138 | K75: نفر ساعت | L75: سر کارگر | M75: 14010101 | O75: 2 | P75: =COUNTIF($S$1:S75,Q75+R75) -> 2 | Q75: 010114 | R75: 1e-08 | S75: 10114
A76: 10114 | C76: 0.1373 | D76: 1 | E76: 7827.8849 | G76: 1 | I76: 57013 | J76: 0.1373 | K76: نفر- ساعت | L76: كارگر ساده | M76: 14010102 | O76: 3 | P76: =COUNTIF($S$1:S76,Q76+R76) -> 3 | Q76: 010114 | R76: 1e-08 | S76: 10114
G77: ضريب | I77: بهاي واحد | J77: مقـدار | K77: واحــد | L77: ماشين آلات | O77: رديف | P77: =COUNTIF($S$1:S77,Q77+R77) -> 0 | Q77: 010114 | R77: 1e-06
A78: 10114 | C78: 0.1267 | D78: 1 | E78: 43924.356 | G78: 1 | I78: 346680 | J78: 0.1267 | K78: دستگاه-ساعت | L78: کامیون کمپرسی به ظرفیت حدود 10 تن با راننده | M78: 23020204 | O78: 1 | P78: =COUNTIF($S$1:S78,Q78+R78) -> 1 | Q78: 010114 | R78: 1e-06 | S78: 10114
A79: 10114 | C79: 0.028 | D79: 1 | E79: 9318.764 | G79: 1 | I79: 332813 | J79: 0.028 | K79: ساعت | L79: بولدوزر به قدرت حدود 150 اسب بخار با راننده | M79: 25010602 | O79: 2 | P79: =COUNTIF($S$1:S79,Q79+R79) -> 2 | Q79: 010114 | R79: 1e-06 | S79: 10114
A80: 10114 | C80: 0.0142 | D80: 1 | E80: 6891.9984 | G80: 1 | I80: 485352 | J80: 0.0142 | K80: دستگاه-ساعت | L80: بولدوزر به قدرت حدود 200 اسب بخار باراننده | M80: 25010603 | O80: 3 | P80: =COUNTIF($S$1:S80,Q80+R80) -> 3 | Q80: 010114 | R80: 1e-06 | S80: 10114
A81: 10114 | C81: 0.0448 | D81: 1 | E81: 16287.5776 | G81: 1 | I81: 363562 | J81: 0.0448 | K81: دستگاه-ساعت | L81: لودرچرخ لاستيکي به قدرت حدود150 اسب بخار باراننده | M81: 25010802 | O81: 4 | P81: =COUNTIF($S$1:S81,Q81+R81) -> 4 | Q81: 010114 | R81: 1e-06 | S81: 10114
A82: 10114 | C82: 1.362 | D82: 1 | E82: 27244.086 | G82: 1 | I82: 20003 | J82: 1.362 | K82: دستگاه-ساعت | L82: کمپکتورصفحه ای | M82: 25030101 | O82: 5 | P82: =COUNTIF($S$1:S82,Q82+R82) -> 5 | Q82: 010114 | R82: 1e-06 | S82: 10114
A83: 10114.00001 | C83: 0.0045 | D83: 1 | E83: 742.5 | G83: 1 | I83: 165000 | J83: 0.0045 | K83: عدد | L83: بیل | M83: 28070101 | O83: 6 | P83: =COUNTIF($S$1:S83,Q83+R83) -> 6 | Q83: 010114 | R83: 1e-06 | S83: 10114
G84: ضريب | I84: بهاي واحد | J84: مقـدار | K84: واحــد | L84: مصالح | O84: رديف | P84: =COUNTIF($S$1:S84,Q84+R84) -> 0 | Q84: 010114 | R84: 0.0001
A85: 10114.0001 | C85: 0.176 | D85: 1 | E85: 1900.8 | G85: 1 | I85: 10800 | J85: 0.176 | K85: مترمكعب | L85: آب لوله کشی شهری | M85: 31010101 | O85: 1 | P85: =COUNTIF($S$1:S85,Q85+R85) -> 1 | Q85: 010114 | R85: 0.0001 | S85: 10114.0001
A86: 10114.0002 | C86: 0.088 | D86: 1 | E86: 833.448 | G86: 1 | I86: 9471 | J86: 0.088 | K86: مترمكعب | L86: آب چاه و قنات | M86: 31010301 | O86: 2 | P86: =COUNTIF($S$1:S86,Q86+R86) -> 2 | Q86: 010114 | R86: 0.0001 | S86: 10114.0001
G87: ضريب | I87: بهاي واحد | J87: مقـدار | K87: واحــد | L87: حمل مصالح | O87: رديف | P87: =COUNTIF($S$1:S87,Q87+R87) -> 0 | Q87: 010114 | R87: 0.01
A88: 10114.01 | C88: 0.088 | D88: 1 | E88: 2922.744 | G88: 1 | I88: 33213 | J88: 0.088 | K88: مترمكعب | L88: حمل آب چاه قنات و رودخانه | M88: 41010101 | O88: 1 | P88: =COUNTIF($S$1:S88,Q88+R88) -> 1 | Q88: 010114 | R88: 0.01 | S88: 10114.01
N89: 010115 | P89: =COUNTIF($S$1:S89,Q89+R89) -> 0 | Q89: 010115 | R89: 0.01
L90: اصله | O90: واحـد : | P90: =COUNTIF($S$1:S90,Q90+R90) -> 0 | Q90: 010115 | R90: 0.01
G91: ضريب | I91: بهاي واحد | J91: مقـدار | K91: واحــد | L91: نيروي انساني | O91: رديف | P91: =COUNTIF($S$1:S91,Q91+R91) -> 0 | Q91: =IF(N91>0,N91,Q90) -> 010115 | R91: 1e-08 | S91: =IF(M91<>"",Q91+R91,"") -> 
A92: 10115 | C92: 0.13 | D92: 1 | E92: 9111.96 | G92: 1 | I92: 70092 | J92: 0.13 | K92: نفر ساعت | L92: متصدی غلطکهای دستی | M92: 13040901 | O92: 1 | P92: =COUNTIF($S$1:S92,Q92+R92) -> 1 | Q92: 010115 | R92: 1e-08 | S92: 10115
A93: 10115 | C93: 0.0013 | D93: 1 | E93: 85.8975 | G93: 1 | I93: 66075 | J93: 0.0013 | K93: نفر ساعت | L93: سر کارگر | M93: 14010101 | O93: 2 | P93: =COUNTIF($S$1:S93,Q93+R93) -> 2 | Q93: 010115 | R93: 1e-08 | S93: 10115
A94: 10115 | C94: 0.013 | D94: 1 | E94: 741.169 | G94: 1 | I94: 57013 | J94: 0.013 | K94: نفر- ساعت | L94: كارگر ساده | M94: 14010102 | O94: 3 | P94: =COUNTIF($S$1:S94,Q94+R94) -> 3 | Q94: 010115 | R94: 1e-08 | S94: 10115
G95: ضريب | I95: بهاي واحد | J95: مقـدار | K95: واحــد | L95: ماشين آلات | O95: رديف | P95: =COUNTIF($S$1:S95,Q95+R95) -> 0 | Q95: 010115 | R95: 1e-06
A96: 10115 | C96: 0.012 | D96: 1 | E96: 4160.16 | G96: 1 | I96: 346680 | J96: 0.012 | K96: دستگاه-ساعت | L96: کامیون کمپرسی به ظرفیت حدود 10 تن با راننده | M96: 23020204 | O96: 1 | P96: =COUNTIF($S$1:S96,Q96+R96) -> 1 | Q96: 010115 | R96: 1e-06 | S96: 10115
A97: 10115 | C97: 0.0026 | D97: 1 | E97: 865.3138 | G97: 1 | I97: 332813 | J97: 0.0026 | K97: ساعت | L97: بولدوزر به قدرت حدود 150 اسب بخار با راننده | M97: 25010602 | O97: 2 | P97: =COUNTIF($S$1:S97,Q97+R97) -> 2 | Q97: 010115 | R97: 1e-06 | S97: 10115
A98: 10115 | C98: 0.0014 | D98: 1 | E98: 679.4928 | G98: 1 | I98: 485352 | J98: 0.0014 | K98: دستگاه-ساعت | L98: بولدوزر به قدرت حدود 200 اسب بخار باراننده | M98: 25010603 | O98: 3 | P98: =COUNTIF($S$1:S98,Q98+R98) -> 3 | Q98: 010115 | R98: 1e-06 | S98: 10115
A99: 10115 | C99: 0.0042 | D99: 1 | E99: 1526.9604 | G99: 1 | I99: 363562 | J99: 0.0042 | K99: دستگاه-ساعت | L99: لودرچرخ لاستيکي به قدرت حدود150 اسب بخار باراننده | M99: 25010802 | O99: 4 | P99: =COUNTIF($S$1:S99,Q99+R99) -> 4 | Q99: 010115 | R99: 1e-06 | S99: 10115
A100: 10115 | C100: 0.13 | D100: 1 | E100: 2600.39 | G100: 1 | I100: 20003 | J100: 0.13 | K100: دستگاه-ساعت | L100: کمپکتورصفحه ای | M100: 25030101 | O100: 5 | P100: =COUNTIF($S$1:S100,Q100+R100) -> 5 | Q100: 010115 | R100: 1e-06 | S100: 10115
A101: 10115.00001 | C101: 0.0042 | D101: 1 | E101: 693 | G101: 1 | I101: 165000 | J101: 0.0042 | K101: عدد | L101: بیل | M101: 28070101 | O101: 6 | P101: =COUNTIF($S$1:S101,Q101+R101) -> 6 | Q101: 010115 | R101: 1e-06 | S101: 10115
G102: ضريب | I102: بهاي واحد | J102: مقـدار | K102: واحــد | L102: مصالح | O102: رديف | P102: =COUNTIF($S$1:S102,Q102+R102) -> 0 | Q102: 010115 | R102: 0.0001
A103: 10115.0001 | C103: 0.017 | D103: 1 | E103: 183.6 | G103: 1 | I103: 10800 | J103: 0.017 | K103: مترمكعب | L103: آب لوله کشی شهری | M103: 31010101 | O103: 1 | P103: =COUNTIF($S$1:S103,Q103+R103) -> 1 | Q103: 010115 | R103: 0.0001 | S103: 10115.0001
A104: 10115.0002 | C104: 0.08 | D104: 1 | E104: 757.68 | G104: 1 | I104: 9471 | J104: 0.08 | K104: مترمكعب | L104: آب چاه و قنات | M104: 31010301 | O104: 2 | P104: =COUNTIF($S$1:S104,Q104+R104) -> 2 | Q104: 010115 | R104: 0.0001 | S104: 10115.0001
G105: ضريب | I105: بهاي واحد | J105: مقـدار | K105: واحــد | L105: حمل مصالح | O105: رديف | P105: =COUNTIF($S$1:S105,Q105+R105) -> 0 | Q105: 010115 | R105: 0.01
A106: 10115.01 | C106: 0.08 | D106: 1 | E106: 2657.04 | G106: 1 | I106: 33213 | J106: 0.08 | K106: مترمكعب | L106: حمل آب چاه قنات و رودخانه | M106: 41010101 | O106: 1 | P106: =COUNTIF($S$1:S106,Q106+R106) -> 1 | Q106: 010115 | R106: 0.01 | S106: 10115.01

Sheet Manabeh (hidden)
A1: رديف | B1: کد عامل | C1: شرح لیست: | D1: واحد | E1: بهای واحد نت | F1: بهای واحد آمار | G1: بهای واحد روز | H1: مقدار مورد نیاز | I1: بهای کل مبنا قیمت | J1: درصد وزنی | K1: 1 | L1: نت | M1: نت | Q1: نسخه نمایشی
A2: 1 | B2: 13040901 | C2: متصدی غلطکهای دستی | D2: نفر ساعت | E2: 70092 | H2: =SUMIF(Report!C:C,B2,Report!J:J) -> 0 | I2: =IF($M$1=$L$1,H2*E2,+IF($M$1=$L$2,H2*F2,H2*G2)) -> 0 | J2: =IFERROR(I2/SUM($I$2:$I$2499),0) -> 0 | K2: =COUNTIF(Report!C:C,B2) -> 0 | L2: آمار | M2: =SUM(K2:K3000) -> 5
A3: 2 | B3: 14010101 | C3: سر کارگر | D3: نفر ساعت | E3: 66075 | F3: 124459 | H3: =SUMIF(Report!C:C,B3,Report!J:J) -> 0 | I3: =IF($M$1=$L$1,H3*E3,+IF($M$1=$L$2,H3*F3,H3*G3)) -> 0 | J3: =IFERROR(I3/SUM($I$2:$I$2499),0) -> 0 | K3: =COUNTIF(Report!C:C,B3) -> 0 | L3: روز
A4: 3 | B4: 14010102 | C4: كارگر ساده | D4: نفر- ساعت | E4: 57013 | F4: 87102 | H4: =SUMIF(Report!C:C,B4,Report!J:J) -> 2.1 | I4: 119727.3 | J4: 0.5686042993 | K4: =COUNTIF(Report!C:C,B4) -> 1 | L4: کل منابع
A5: 4 | B5: 14120101 | C5: نجار در و پنجره ساز درجه یک | D5: نفر ساعت | E5: 99236 | H5: =SUMIF(Report!C:C,B5,Report!J:J) -> 0.21 | I5: 20839.56 | J5: 0.09897043875 | K5: =COUNTIF(Report!C:C,B5) -> 1 | L5: منابع پروژه
A6: 5 | B6: 14120401 | C6: کمک نجار | D6: نفر - ساعت | E6: 60297 | H6: =SUMIF(Report!C:C,B6,Report!J:J) -> 1.06 | I6: 63914.82 | J6: 0.3035418108 | K6: =COUNTIF(Report!C:C,B6) -> 1
A7: 6 | B7: 23020204 | C7: کامیون کمپرسی به ظرفیت حدود 10 تن با راننده | D7: دستگاه-ساعت | E7: 346680 | F7: 536117 | H7: =SUMIF(Report!C:C,B7,Report!J:J) -> 0 | I7: 0 | J7: 0 | K7: =COUNTIF(Report!C:C,B7) -> 0
A8: 7 | B8: 25010602 | C8: بولدوزر به قدرت حدود 150 اسب بخار با راننده | D8: ساعت | E8: 332813 | F8: 824481 | H8: =SUMIF(Report!C:C,B8,Report!J:J) -> 0 | I8: 0 | J8: 0 | K8: =COUNTIF(Report!C:C,B8) -> 0
A9: 8 | B9: 25010603 | C9: بولدوزر به قدرت حدود 200 اسب بخار باراننده | D9: دستگاه-ساعت | E9: 485352 | F9: 1053388 | H9: =SUMIF(Report!C:C,B9,Report!J:J) -> 0 | I9: 0 | J9: 0 | K9: =COUNTIF(Report!C:C,B9) -> 0
A10: 9 | B10: 25010802 | C10: لودرچرخ لاستيکي به قدرت حدود150 اسب بخار باراننده | D10: دستگاه-ساعت | E10: 363562 | F10: 828903 | H10: =SUMIF(Report!C:C,B10,Report!J:J) -> 0 | I10: 0 | J10: 0 | K10: =COUNTIF(Report!C:C,B10) -> 0
A11: 10 | B11: 25010902 | C11: گریدر به قدرت حدود180 اسب بخار باراننده | D11: دستگاه-ساعت | E11: 424164 | F11: 1055418 | H11: =SUMIF(Report!C:C,B11,Report!J:J) -> 0.01 | I11: 4241.64 | J11: 0.02014423394 | K11: =COUNTIF(Report!C:C,B11) -> 1
A12: 11 | B12: 25030101 | C12: کمپکتورصفحه ای | D12: دستگاه-ساعت | E12: 20003 | H12: =SUMIF(Report!C:C,B12,Report!J:J) -> 0 | I12: 0 | J12: 0 | K12: =COUNTIF(Report!C:C,B12) -> 0
A13: 12 | B13: 28060203 | C13: اره بنزینی متحرک چوب | D13: دستگاه ساعت | E13: 1736 | H13: =SUMIF(Report!C:C,B13,Report!J:J) -> 1.06 | I13: 1840.16 | J13: 0.008739217266 | K13: =COUNTIF(Report!C:C,B13) -> 1
A14: 13 | B14: 28070101 | C14: بیل | D14: عدد | E14: 165000 | H14: =SUMIF(Report!C:C,B14,Report!J:J) -> 0 | I14: 0 | J14: 0 | K14: =COUNTIF(Report!C:C,B14) -> 0
A15: 14 | B15: 31010101 | C15: آب لوله کشی شهری | D15: مترمكعب | E15: 10800 | H15: =SUMIF(Report!C:C,B15,Report!J:J) -> 0 | I15: 0 | J15: 0 | K15: =COUNTIF(Report!C:C,B15) -> 0
A16: 15 | B16: 31010301 | C16: آب چاه و قنات | D16: مترمكعب | E16: 9471 | H16: =SUMIF(Report!C:C,B16,Report!J:J) -> 0 | I16: 0 | J16: 0 | K16: =COUNTIF(Report!C:C,B16) -> 0
A17: 16 | B17: 41010101 | C17: حمل آب چاه قنات و رودخانه | D17: مترمكعب | E17: 33213 | H17: =SUMIF(Report!C:C,B17,Report!J:J) -> 0 | I17: 0 | J17: 0 | K17: =COUNTIF(Report!C:C,B17) -> 0
H18: =SUMIF(Report!C:C,B18,Report!J:J) -> 0 | I18: 0 | J18: 0 | K18: =COUNTIF(Report!C:C,B18) -> 0
H19: =SUMIF(Report!C:C,B19,Report!J:J) -> 0 | I19: 0 | J19: 0 | K19: =COUNTIF(Report!C:C,B19) -> 0
H20: =SUMIF(Report!C:C,B20,Report!J:J) -> 0 | I20: 0 | J20: 0 | K20: =COUNTIF(Report!C:C,B20) -> 0
H21: =SUMIF(Report!C:C,B21,Report!J:J) -> 0 | I21: 0 | J21: 0 | K21: =COUNTIF(Report!C:C,B21) -> 0
H22: =SUMIF(Report!C:C,B22,Report!J:J) -> 0 | I22: 0 | J22: 0 | K22: =COUNTIF(Report!C:C,B22) -> 0
H23: =SUMIF(Report!C:C,B23,Report!J:J) -> 0 | I23: 0 | J23: 0 | K23: =COUNTIF(Report!C:C,B23) -> 0
H24: =SUMIF(Report!C:C,B24,Report!J:J) -> 0 | I24: 0 | J24: 0 | K24: =COUNTIF(Report!C:C,B24) -> 0
H25: =SUMIF(Report!C:C,B25,Report!J:J) -> 0 | I25: 0 | J25: 0 | K25: =COUNTIF(Report!C:C,B25) -> 0
H26: =SUMIF(Report!C:C,B26,Report!J:J) -> 0 | I26: 0 | J26: 0 | K26: =COUNTIF(Report!C:C,B26) -> 0
H27: =SUMIF(Report!C:C,B27,Report!J:J) -> 0 | I27: 0 | J27: 0 | K27: =COUNTIF(Report!C:C,B27) -> 0
H28: =SUMIF(Report!C:C,B28,Report!J:J) -> 0 | I28: 0 | J28: 0 | K28: =COUNTIF(Report!C:C,B28) -> 0
H29: =SUMIF(Report!C:C,B29,Report!J:J) -> 0 | I29: 0 | J29: 0 | K29: =COUNTIF(Report!C:C,B29) -> 0
H30: =SUMIF(Report!C:C,B30,Report!J:J) -> 0 | I30: 0 | J30: 0 | K30: =COUNTIF(Report!C:C,B30) -> 0
H31: =SUMIF(Report!C:C,B31,Report!J:J) -> 0 | I31: 0 | J31: 0 | K31: =COUNTIF(Report!C:C,B31) -> 0
H32: =SUMIF(Report!C:C,B32,Report!J:J) -> 0 | I32: 0 | J32: 0 | K32: =COUNTIF(Report!C:C,B32) -> 0
H33: =SUMIF(Report!C:C,B33,Report!J:J) -> 0 | I33: 0 | J33: 0 | K33: =COUNTIF(Report!C:C,B33) -> 0
H34: =SUMIF(Report!C:C,B34,Report!J:J) -> 0 | I34: 0 | J34: 0 | K34: =COUNTIF(Report!C:C,B34) -> 0
H35: =SUMIF(Report!C:C,B35,Report!J:J) -> 0 | I35: 0 | J35: 0 | K35: =COUNTIF(Report!C:C,B35) -> 0
H36: =SUMIF(Report!C:C,B36,Report!J:J) -> 0 | I36: 0 | J36: 0 | K36: =COUNTIF(Report!C:C,B36) -> 0
H37: =SUMIF(Report!C:C,B37,Report!J:J) -> 0 | I37: 0 | J37: 0 | K37: =COUNTIF(Report!C:C,B37) -> 0
H38: =SUMIF(Report!C:C,B38,Report!J:J) -> 0 | I38: 0 | J38: 0 | K38: =COUNTIF(Report!C:C,B38) -> 0
H39: =SUMIF(Report!C:C,B39,Report!J:J) -> 0 | I39: 0 | J39: 0 | K39: =COUNTIF(Report!C:C,B39) -> 0
H40: =SUMIF(Report!C:C,B40,Report!J:J) -> 0 | I40: 0 | J40: 0 | K40: =COUNTIF(Report!C:C,B40) -> 0
H41: =SUMIF(Report!C:C,B41,Report!J:J) -> 0 | I41: 0 | J41: 0 | K41: =COUNTIF(Report!C:C,B41) -> 0
H42: =SUMIF(Report!C:C,B42,Report!J:J) -> 0 | I42: 0 | J42: 0 | K42: =COUNTIF(Report!C:C,B42) -> 0
H43: =SUMIF(Report!C:C,B43,Report!J:J) -> 0 | I43: 0 | J43: 0 | K43: =COUNTIF(Report!C:C,B43) -> 0
H44: =SUMIF(Report!C:C,B44,Report!J:J) -> 0 | I44: 0 | J44: 0 | K44: =COUNTIF(Report!C:C,B44) -> 0
H45: =SUMIF(Report!C:C,B45,Report!J:J) -> 0 | I45: 0 | J45: 0 | K45: =COUNTIF(Report!C:C,B45) -> 0
H46: =SUMIF(Report!C:C,B46,Report!J:J) -> 0 | I46: 0 | J46: 0 | K46: =COUNTIF(Report!C:C,B46) -> 0
H47: =SUMIF(Report!C:C,B47,Report!J:J) -> 0 | I47: 0 | J47: 0 | K47: =COUNTIF(Report!C:C,B47) -> 0
H48: =SUMIF(Report!C:C,B48,Report!J:J) -> 0 | I48: 0 | J48: 0 | K48: =COUNTIF(Report!C:C,B48) -> 0
H49: =SUMIF(Report!C:C,B49,Report!J:J) -> 0 | I49: 0 | J49: 0 | K49: =COUNTIF(Report!C:C,B49) -> 0
H50: =SUMIF(Report!C:C,B50,Report!J:J) -> 0 | I50: 0 | J50: 0 | K50: =COUNTIF(Report!C:C,B50) -> 0
H51: =SUMIF(Report!C:C,B51,Report!J:J) -> 0 | I51: 0 | J51: 0 | K51: =COUNTIF(Report!C:C,B51) -> 0
H52: =SUMIF(Report!C:C,B52,Report!J:J) -> 0 | I52: 0 | J52: 0 | K52: =COUNTIF(Report!C:C,B52) -> 0
H53: =SUMIF(Report!C:C,B53,Report!J:J) -> 0 | I53: 0 | J53: 0 | K53: =COUNTIF(Report!C:C,B53) -> 0
H54: =SUMIF(Report!C:C,B54,Report!J:J) -> 0 | I54: 0 | J54: 0 | K54: =COUNTIF(Report!C:C,B54) -> 0
H55: =SUMIF(Report!C:C,B55,Report!J:J) -> 0 | I55: 0 | J55: 0 | K55: =COUNTIF(Report!C:C,B55) -> 0
H56: =SUMIF(Report!C:C,B56,Report!J:J) -> 0 | I56: 0 | J56: 0 | K56: =COUNTIF(Report!C:C,B56) -> 0
H57: =SUMIF(Report!C:C,B57,Report!J:J) -> 0 | I57: 0 | J57: 0 | K57: =COUNTIF(Report!C:C,B57) -> 0
H58: =SUMIF(Report!C:C,B58,Report!J:J) -> 0 | I58: 0 | J58: 0 | K58: =COUNTIF(Report!C:C,B58) -> 0
H59: =SUMIF(Report!C:C,B59,Report!J:J) -> 0 | I59: 0 | J59: 0 | K59: =COUNTIF(Report!C:C,B59) -> 0
H60: =SUMIF(Report!C:C,B60,Report!J:J) -> 0 | I60: 0 | J60: 0 | K60: =COUNTIF(Report!C:C,B60) -> 0
H61: =SUMIF(Report!C:C,B61,Report!J:J) -> 0 | I61: 0 | J61: 0 | K61: =COUNTIF(Report!C:C,B61) -> 0
H62: =SUMIF(Report!C:C,B62,Report!J:J) -> 0 | I62: 0 | J62: 0 | K62: =COUNTIF(Report!C:C,B62) -> 0
H63: =SUMIF(Report!C:C,B63,Report!J:J) -> 0 | I63: 0 | J63: 0 | K63: =COUNTIF(Report!C:C,B63) -> 0
H64: =SUMIF(Report!C:C,B64,Report!J:J) -> 0 | I64: 0 | J64: 0 | K64: =COUNTIF(Report!C:C,B64) -> 0
H65: =SUMIF(Report!C:C,B65,Report!J:J) -> 0 | I65: 0 | J65: 0 | K65: =COUNTIF(Report!C:C,B65) -> 0
H66: =SUMIF(Report!C:C,B66,Report!J:J) -> 0 | I66: 0 | J66: 0 | K66: =COUNTIF(Report!C:C,B66) -> 0
H67: =SUMIF(Report!C:C,B67,Report!J:J) -> 0 | I67: =IF($M$1=$L$1,H67*E67,+IF($M$1=$L$2,H67*F67,H67*G67)) -> 0 | J67: =IFERROR(I67/SUM($I$2:$I$2499),0) -> 0 | K67: =COUNTIF(Report!C:C,B67) -> 0
H68: =SUMIF(Report!C:C,B68,Report!J:J) -> 0 | I68: 0 | J68: 0 | K68: =COUNTIF(Report!C:C,B68) -> 0
H69: =SUMIF(Report!C:C,B69,Report!J:J) -> 0 | I69: 0 | J69: 0 | K69: =COUNTIF(Report!C:C,B69) -> 0
H70: =SUMIF(Report!C:C,B70,Report!J:J) -> 0 | I70: 0 | J70: 0 | K70: =COUNTIF(Report!C:C,B70) -> 0
H71: =SUMIF(Report!C:C,B71,Report!J:J) -> 0 | I71: 0 | J71: 0 | K71: =COUNTIF(Report!C:C,B71) -> 0
H72: =SUMIF(Report!C:C,B72,Report!J:J) -> 0 | I72: 0 | J72: 0 | K72: =COUNTIF(Report!C:C,B72) -> 0
H73: =SUMIF(Report!C:C,B73,Report!J:J) -> 0 | I73: 0 | J73: 0 | K73: =COUNTIF(Report!C:C,B73) -> 0
H74: =SUMIF(Report!C:C,B74,Report!J:J) -> 0 | I74: 0 | J74: 0 | K74: =COUNTIF(Report!C:C,B74) -> 0
H75: =SUMIF(Report!C:C,B75,Report!J:J) -> 0 | I75: 0 | J75: 0 | K75: =COUNTIF(Report!C:C,B75) -> 0
H76: =SUMIF(Report!C:C,B76,Report!J:J) -> 0 | I76: 0 | J76: 0 | K76: =COUNTIF(Report!C:C,B76) -> 0
H77: =SUMIF(Report!C:C,B77,Report!J:J) -> 0 | I77: 0 | J77: 0 | K77: =COUNTIF(Report!C:C,B77) -> 0
H78: =SUMIF(Report!C:C,B78,Report!J:J) -> 0 | I78: 0 | J78: 0 | K78: =COUNTIF(Report!C:C,B78) -> 0
H79: =SUMIF(Report!C:C,B79,Report!J:J) -> 0 | I79: 0 | J79: 0 | K79: =COUNTIF(Report!C:C,B79) -> 0
H80: =SUMIF(Report!C:C,B80,Report!J:J) -> 0 | I80: 0 | J80: 0 | K80: =COUNTIF(Report!C:C,B80) -> 0
H81: =SUMIF(Report!C:C,B81,Report!J:J) -> 0 | I81: 0 | J81: 0 | K81: =COUNTIF(Report!C:C,B81) -> 0
H82: =SUMIF(Report!C:C,B82,Report!J:J) -> 0 | I82: 0 | J82: 0 | K82: =COUNTIF(Report!C:C,B82) -> 0
H83: =SUMIF(Report!C:C,B83,Report!J:J) -> 0 | I83: 0 | J83: 0 | K83: =COUNTIF(Report!C:C,B83) -> 0
H84: =SUMIF(Report!C:C,B84,Report!J:J) -> 0 | I84: 0 | J84: 0 | K84: =COUNTIF(Report!C:C,B84) -> 0
H85: =SUMIF(Report!C:C,B85,Report!J:J) -> 0 | I85: 0 | J85: 0 | K85: =COUNTIF(Report!C:C,B85) -> 0
H86: =SUMIF(Report!C:C,B86,Report!J:J) -> 0 | I86: 0 | J86: 0 | K86: =COUNTIF(Report!C:C,B86) -> 0
H87: =SUMIF(Report!C:C,B87,Report!J:J) -> 0 | I87: 0 | J87: 0 | K87: =COUNTIF(Report!C:C,B87) -> 0
H88: =SUMIF(Report!C:C,B88,Report!J:J) -> 0 | I88: 0 | J88: 0 | K88: =COUNTIF(Report!C:C,B88) -> 0
H89: =SUMIF(Report!C:C,B89,Report!J:J) -> 0 | I89: 0 | J89: 0 | K89: =COUNTIF(Report!C:C,B89) -> 0
H90: =SUMIF(Report!C:C,B90,Report!J:J) -> 0 | I90: 0 | J90: 0 | K90: =COUNTIF(Report!C:C,B90) -> 0
H91: =SUMIF(Report!C:C,B91,Report!J:J) -> 0 | I91: 0 | J91: 0 | K91: =COUNTIF(Report!C:C,B91) -> 0
H92: =SUMIF(Report!C:C,B92,Report!J:J) -> 0 | I92: 0 | J92: 0 | K92: =COUNTIF(Report!C:C,B92) -> 0
H93: =SUMIF(Report!C:C,B93,Report!J:J) -> 0 | I93: 0 | J93: 0 | K93: =COUNTIF(Report!C:C,B93) -> 0
H94: =SUMIF(Report!C:C,B94,Report!J:J) -> 0 | I94: 0 | J94: 0 | K94: =COUNTIF(Report!C:C,B94) -> 0
H95: =SUMIF(Report!C:C,B95,Report!J:J) -> 0 | I95: 0 | J95: 0 | K95: =COUNTIF(Report!C:C,B95) -> 0
H96: =SUMIF(Report!C:C,B96,Report!J:J) -> 0 | I96: 0 | J96: 0 | K96: =COUNTIF(Report!C:C,B96) -> 0
H97: =SUMIF(Report!C:C,B97,Report!J:J) -> 0 | I97: 0 | J97: 0 | K97: =COUNTIF(Report!C:C,B97) -> 0
H98: =SUMIF(Report!C:C,B98,Report!J:J) -> 0 | I98: 0 | J98: 0 | K98: =COUNTIF(Report!C:C,B98) -> 0
H99: =SUMIF(Report!C:C,B99,Report!J:J) -> 0 | I99: 0 | J99: 0 | K99: =COUNTIF(Report!C:C,B99) -> 0
H100: =SUMIF(Report!C:C,B100,Report!J:J) -> 0 | I100: 0 | J100: 0 | K100: =COUNTIF(Report!C:C,B100) -> 0
H101: =SUMIF(Report!C:C,B101,Report!J:J) -> 0 | I101: 0 | J101: 0 | K101: =COUNTIF(Report!C:C,B101) -> 0
H102: =SUMIF(Report!C:C,B102,Report!J:J) -> 0 | I102: 0 | J102: 0 | K102: =COUNTIF(Report!C:C,B102) -> 0
H103: =SUMIF(Report!C:C,B103,Report!J:J) -> 0 | I103: 0 | J103: 0 | K103: =COUNTIF(Report!C:C,B103) -> 0
H104: =SUMIF(Report!C:C,B104,Report!J:J) -> 0 | I104: 0 | J104: 0 | K104: =COUNTIF(Report!C:C,B104) -> 0
H105: =SUMIF(Report!C:C,B105,Report!J:J) -> 0 | I105: 0 | J105: 0 | K105: =COUNTIF(Report!C:C,B105) -> 0
H106: =SUMIF(Report!C:C,B106,Report!J:J) -> 0 | I106: 0 | J106: 0 | K106: =COUNTIF(Report!C:C,B106) -> 0
H107: =SUMIF(Report!C:C,B107,Report!J:J) -> 0 | I107: 0 | J107: 0 | K107: =COUNTIF(Report!C:C,B107) -> 0
H108: =SUMIF(Report!C:C,B108,Report!J:J) -> 0 | I108: 0 | J108: 0 | K108: =COUNTIF(Report!C:C,B108) -> 0
H109: =SUMIF(Report!C:C,B109,Report!J:J) -> 0 | I109: 0 | J109: 0 | K109: =COUNTIF(Report!C:C,B109) -> 0
H110: =SUMIF(Report!C:C,B110,Report!J:J) -> 0 | I110: 0 | J110: 0 | K110: =COUNTIF(Report!C:C,B110) -> 0
H111: =SUMIF(Report!C:C,B111,Report!J:J) -> 0 | I111: 0 | J111: 0 | K111: =COUNTIF(Report!C:C,B111) -> 0
H112: =SUMIF(Report!C:C,B112,Report!J:J) -> 0 | I112: 0 | J112: 0 | K112: =COUNTIF(Report!C:C,B112) -> 0
H113: =SUMIF(Report!C:C,B113,Report!J:J) -> 0 | I113: 0 | J113: 0 | K113: =COUNTIF(Report!C:C,B113) -> 0
H114: =SUMIF(Report!C:C,B114,Report!J:J) -> 0 | I114: 0 | J114: 0 | K114: =COUNTIF(Report!C:C,B114) -> 0
H115: =SUMIF(Report!C:C,B115,Report!J:J) -> 0 | I115: 0 | J115: 0 | K115: =COUNTIF(Report!C:C,B115) -> 0
H116: =SUMIF(Report!C:C,B116,Report!J:J) -> 0 | I116: 0 | J116: 0 | K116: =COUNTIF(Report!C:C,B116) -> 0
H117: =SUMIF(Report!C:C,B117,Report!J:J) -> 0 | I117: 0 | J117: 0 | K117: =COUNTIF(Report!C:C,B117) -> 0
H118: =SUMIF(Report!C:C,B118,Report!J:J) -> 0 | I118: 0 | J118: 0 | K118: =COUNTIF(Report!C:C,B118) -> 0
H119: =SUMIF(Report!C:C,B119,Report!J:J) -> 0 | I119: 0 | J119: 0 | K119: =COUNTIF(Report!C:C,B119) -> 0
H120: =SUMIF(Report!C:C,B120,Report!J:J) -> 0 | I120: 0 | J120: 0 | K120: =COUNTIF(Report!C:C,B120) -> 0
H121: =SUMIF(Report!C:C,B121,Report!J:J) -> 0 | I121: 0 | J121: 0 | K121: =COUNTIF(Report!C:C,B121) -> 0
H122: =SUMIF(Report!C:C,B122,Report!J:J) -> 0 | I122: 0 | J122: 0 | K122: =COUNTIF(Report!C:C,B122) -> 0
H123: =SUMIF(Report!C:C,B123,Report!J:J) -> 0 | I123: 0 | J123: 0 | K123: =COUNTIF(Report!C:C,B123) -> 0
H124: =SUMIF(Report!C:C,B124,Report!J:J) -> 0 | I124: 0 | J124: 0 | K124: =COUNTIF(Report!C:C,B124) -> 0
H125: =SUMIF(Report!C:C,B125,Report!J:J) -> 0 | I125: 0 | J125: 0 | K125: =COUNTIF(Report!C:C,B125) -> 0
H126: =SUMIF(Report!C:C,B126,Report!J:J) -> 0 | I126: 0 | J126: 0 | K126: =COUNTIF(Report!C:C,B126) -> 0
H127: =SUMIF(Report!C:C,B127,Report!J:J) -> 0 | I127: 0 | J127: 0 | K127: =COUNTIF(Report!C:C,B127) -> 0
H128: =SUMIF(Report!C:C,B128,Report!J:J) -> 0 | I128: 0 | J128: 0 | K128: =COUNTIF(Report!C:C,B128) -> 0
H129: =SUMIF(Report!C:C,B129,Report!J:J) -> 0 | I129: 0 | J129: 0 | K129: =COUNTIF(Report!C:C,B129) -> 0
H130: =SUMIF(Report!C:C,B130,Report!J:J) -> 0 | I130: 0 | J130: 0 | K130: =COUNTIF(Report!C:C,B130) -> 0
H131: =SUMIF(Report!C:C,B131,Report!J:J) -> 0 | I131: =IF($M$1=$L$1,H131*E131,+IF($M$1=$L$2,H131*F131,H131*G131)) -> 0 | J131: =IFERROR(I131/SUM($I$2:$I$2499),0) -> 0 | K131: =COUNTIF(Report!C:C,B131) -> 0
H132: =SUMIF(Report!C:C,B132,Report!J:J) -> 0 | I132: 0 | J132: 0 | K132: =COUNTIF(Report!C:C,B132) -> 0
H133: =SUMIF(Report!C:C,B133,Report!J:J) -> 0 | I133: 0 | J133: 0 | K133: =COUNTIF(Report!C:C,B133) -> 0
H134: =SUMIF(Report!C:C,B134,Report!J:J) -> 0 | I134: 0 | J134: 0 | K134: =COUNTIF(Report!C:C,B134) -> 0
H135: =SUMIF(Report!C:C,B135,Report!J:J) -> 0 | I135: 0 | J135: 0 | K135: =COUNTIF(Report!C:C,B135) -> 0
H136: =SUMIF(Report!C:C,B136,Report!J:J) -> 0 | I136: 0 | J136: 0 | K136: =COUNTIF(Report!C:C,B136) -> 0
H137: =SUMIF(Report!C:C,B137,Report!J:J) -> 0 | I137: 0 | J137: 0 | K137: =COUNTIF(Report!C:C,B137) -> 0
H138: =SUMIF(Report!C:C,B138,Report!J:J) -> 0 | I138: 0 | J138: 0 | K138: =COUNTIF(Report!C:C,B138) -> 0
H139: =SUMIF(Report!C:C,B139,Report!J:J) -> 0 | I139: 0 | J139: 0 | K139: =COUNTIF(Report!C:C,B139) -> 0
H140: =SUMIF(Report!C:C,B140,Report!J:J) -> 0 | I140: 0 | J140: 0 | K140: =COUNTIF(Report!C:C,B140) -> 0
H141: =SUMIF(Report!C:C,B141,Report!J:J) -> 0 | I141: 0 | J141: 0 | K141: =COUNTIF(Report!C:C,B141) -> 0
H142: =SUMIF(Report!C:C,B142,Report!J:J) -> 0 | I142: 0 | J142: 0 | K142: =COUNTIF(Report!C:C,B142) -> 0
H143: =SUMIF(Report!C:C,B143,Report!J:J) -> 0 | I143: 0 | J143: 0 | K143: =COUNTIF(Report!C:C,B143) -> 0
H144: =SUMIF(Report!C:C,B144,Report!J:J) -> 0 | I144: 0 | J144: 0 | K144: =COUNTIF(Report!C:C,B144) -> 0
H145: =SUMIF(Report!C:C,B145,Report!J:J) -> 0 | I145: 0 | J145: 0 | K145: =COUNTIF(Report!C:C,B145) -> 0
H146: =SUMIF(Report!C:C,B146,Report!J:J) -> 0 | I146: 0 | J146: 0 | K146: =COUNTIF(Report!C:C,B146) -> 0
H147: =SUMIF(Report!C:C,B147,Report!J:J) -> 0 | I147: 0 | J147: 0 | K147: =COUNTIF(Report!C:C,B147) -> 0
H148: =SUMIF(Report!C:C,B148,Report!J:J) -> 0 | I148: 0 | J148: 0 | K148: =COUNTIF(Report!C:C,B148) -> 0
H149: =SUMIF(Report!C:C,B149,Report!J:J) -> 0 | I149: 0 | J149: 0 | K149: =COUNTIF(Report!C:C,B149) -> 0
H150: =SUMIF(Report!C:C,B150,Report!J:J) -> 0 | I150: 0 | J150: 0 | K150: =COUNTIF(Report!C:C,B150) -> 0
H151: =SUMIF(Report!C:C,B151,Report!J:J) -> 0 | I151: 0 | J151: 0 | K151: =COUNTIF(Report!C:C,B151) -> 0
H152: =SUMIF(Report!C:C,B152,Report!J:J) -> 0 | I152: 0 | J152: 0 | K152: =COUNTIF(Report!C:C,B152) -> 0
H153: =SUMIF(Report!C:C,B153,Report!J:J) -> 0 | I153: 0 | J153: 0 | K153: =COUNTIF(Report!C:C,B153) -> 0
H154: =SUMIF(Report!C:C,B154,Report!J:J) -> 0 | I154: 0 | J154: 0 | K154: =COUNTIF(Report!C:C,B154) -> 0
H155: =SUMIF(Report!C:C,B155,Report!J:J) -> 0 | I155: 0 | J155: 0 | K155: =COUNTIF(Report!C:C,B155) -> 0
H156: =SUMIF(Report!C:C,B156,Report!J:J) -> 0 | I156: 0 | J156: 0 | K156: =COUNTIF(Report!C:C,B156) -> 0
H157: =SUMIF(Report!C:C,B157,Report!J:J) -> 0 | I157: 0 | J157: 0 | K157: =COUNTIF(Report!C:C,B157) -> 0
H158: =SUMIF(Report!C:C,B158,Report!J:J) -> 0 | I158: 0 | J158: 0 | K158: =COUNTIF(Report!C:C,B158) -> 0
H159: =SUMIF(Report!C:C,B159,Report!J:J) -> 0 | I159: 0 | J159: 0 | K159: =COUNTIF(Report!C:C,B159) -> 0
H160: =SUMIF(Report!C:C,B160,Report!J:J) -> 0 | I160: 0 | J160: 0 | K160: =COUNTIF(Report!C:C,B160) -> 0
H161: =SUMIF(Report!C:C,B161,Report!J:J) -> 0 | I161: 0 | J161: 0 | K161: =COUNTIF(Report!C:C,B161) -> 0
H162: =SUMIF(Report!C:C,B162,Report!J:J) -> 0 | I162: 0 | J162: 0 | K162: =COUNTIF(Report!C:C,B162) -> 0
H163: =SUMIF(Report!C:C,B163,Report!J:J) -> 0 | I163: 0 | J163: 0 | K163: =COUNTIF(Report!C:C,B163) -> 0
H164: =SUMIF(Report!C:C,B164,Report!J:J) -> 0 | I164: 0 | J164: 0 | K164: =COUNTIF(Report!C:C,B164) -> 0
H165: =SUMIF(Report!C:C,B165,Report!J:J) -> 0 | I165: 0 | J165: 0 | K165: =COUNTIF(Report!C:C,B165) -> 0
H166: =SUMIF(Report!C:C,B166,Report!J:J) -> 0 | I166: 0 | J166: 0 | K166: =COUNTIF(Report!C:C,B166) -> 0
H167: =SUMIF(Report!C:C,B167,Report!J:J) -> 0 | I167: 0 | J167: 0 | K167: =COUNTIF(Report!C:C,B167) -> 0
H168: =SUMIF(Report!C:C,B168,Report!J:J) -> 0 | I168: 0 | J168: 0 | K168: =COUNTIF(Report!C:C,B168) -> 0
H169: =SUMIF(Report!C:C,B169,Report!J:J) -> 0 | I169: 0 | J169: 0 | K169: =COUNTIF(Report!C:C,B169) -> 0
H170: =SUMIF(Report!C:C,B170,Report!J:J) -> 0 | I170: 0 | J170: 0 | K170: =COUNTIF(Report!C:C,B170) -> 0
H171: =SUMIF(Report!C:C,B171,Report!J:J) -> 0 | I171: 0 | J171: 0 | K171: =COUNTIF(Report!C:C,B171) -> 0
H172: =SUMIF(Report!C:C,B172,Report!J:J) -> 0 | I172: 0 | J172: 0 | K172: =COUNTIF(Report!C:C,B172) -> 0
H173: =SUMIF(Report!C:C,B173,Report!J:J) -> 0 | I173: 0 | J173: 0 | K173: =COUNTIF(Report!C:C,B173) -> 0
H174: =SUMIF(Report!C:C,B174,Report!J:J) -> 0 | I174: 0 | J174: 0 | K174: =COUNTIF(Report!C:C,B174) -> 0
H175: =SUMIF(Report!C:C,B175,Report!J:J) -> 0 | I175: 0 | J175: 0 | K175: =COUNTIF(Report!C:C,B175) -> 0
H176: =SUMIF(Report!C:C,B176,Report!J:J) -> 0 | I176: 0 | J176: 0 | K176: =COUNTIF(Report!C:C,B176) -> 0
H177: =SUMIF(Report!C:C,B177,Report!J:J) -> 0 | I177: 0 | J177: 0 | K177: =COUNTIF(Report!C:C,B177) -> 0
H178: =SUMIF(Report!C:C,B178,Report!J:J) -> 0 | I178: 0 | J178: 0 | K178: =COUNTIF(Report!C:C,B178) -> 0
H179: =SUMIF(Report!C:C,B179,Report!J:J) -> 0 | I179: 0 | J179: 0 | K179: =COUNTIF(Report!C:C,B179) -> 0
H180: =SUMIF(Report!C:C,B180,Report!J:J) -> 0 | I180: 0 | J180: 0 | K180: =COUNTIF(Report!C:C,B180) -> 0
H181: =SUMIF(Report!C:C,B181,Report!J:J) -> 0 | I181: 0 | J181: 0 | K181: =COUNTIF(Report!C:C,B181) -> 0
H182: =SUMIF(Report!C:C,B182,Report!J:J) -> 0 | I182: 0 | J182: 0 | K182: =COUNTIF(Report!C:C,B182) -> 0
H183: =SUMIF(Report!C:C,B183,Report!J:J) -> 0 | I183: 0 | J183: 0 | K183: =COUNTIF(Report!C:C,B183) -> 0
H184: =SUMIF(Report!C:C,B184,Report!J:J) -> 0 | I184: 0 | J184: 0 | K184: =COUNTIF(Report!C:C,B184) -> 0
H185: =SUMIF(Report!C:C,B185,Report!J:J) -> 0 | I185: 0 | J185: 0 | K185: =COUNTIF(Report!C:C,B185) -> 0
H186: =SUMIF(Report!C:C,B186,Report!J:J) -> 0 | I186: 0 | J186: 0 | K186: =COUNTIF(Report!C:C,B186) -> 0
H187: =SUMIF(Report!C:C,B187,Report!J:J) -> 0 | I187: 0 | J187: 0 | K187: =COUNTIF(Report!C:C,B187) -> 0
H188: =SUMIF(Report!C:C,B188,Report!J:J) -> 0 | I188: 0 | J188: 0 | K188: =COUNTIF(Report!C:C,B188) -> 0
H189: =SUMIF(Report!C:C,B189,Report!J:J) -> 0 | I189: 0 | J189: 0 | K189: =COUNTIF(Report!C:C,B189) -> 0
H190: =SUMIF(Report!C:C,B190,Report!J:J) -> 0 | I190: 0 | J190: 0 | K190: =COUNTIF(Report!C:C,B190) -> 0
H191: =SUMIF(Report!C:C,B191,Report!J:J) -> 0 | I191: 0 | J191: 0 | K191: =COUNTIF(Report!C:C,B191) -> 0
H192: =SUMIF(Report!C:C,B192,Report!J:J) -> 0 | I192: 0 | J192: 0 | K192: =COUNTIF(Report!C:C,B192) -> 0
H193: =SUMIF(Report!C:C,B193,Report!J:J) -> 0 | I193: 0 | J193: 0 | K193: =COUNTIF(Report!C:C,B193) -> 0
H194: =SUMIF(Report!C:C,B194,Report!J:J) -> 0 | I194: 0 | J194: 0 | K194: =COUNTIF(Report!C:C,B194) -> 0
H195: =SUMIF(Report!C:C,B195,Report!J:J) -> 0 | I195: =IF($M$1=$L$1,H195*E195,+IF($M$1=$L$2,H195*F195,H195*G195)) -> 0 | J195: =IFERROR(I195/SUM($I$2:$I$2499),0) -> 0 | K195: =COUNTIF(Report!C:C,B195) -> 0
H196: =SUMIF(Report!C:C,B196,Report!J:J) -> 0 | I196: 0 | J196: 0 | K196: =COUNTIF(Report!C:C,B196) -> 0
H197: =SUMIF(Report!C:C,B197,Report!J:J) -> 0 | I197: 0 | J197: 0 | K197: =COUNTIF(Report!C:C,B197) -> 0
H198: =SUMIF(Report!C:C,B198,Report!J:J) -> 0 | I198: 0 | J198: 0 | K198: =COUNTIF(Report!C:C,B198) -> 0
H199: =SUMIF(Report!C:C,B199,Report!J:J) -> 0 | I199: 0 | J199: 0 | K199: =COUNTIF(Report!C:C,B199) -> 0
H200: =SUMIF(Report!C:C,B200,Report!J:J) -> 0 | I200: 0 | J200: 0 | K200: =COUNTIF(Report!C:C,B200) -> 0
... 1301 more rows

Sheet Report (hidden)
B1: «جدول 5 . تجزیه بهای اقلام کار»
B2: ='D2'!B1 -> نسخه نمایشی فهرست بهای واحد پایه رشته ابنیه رسته ساختمان سال 97
B3: =IF(Help!E19<>"","نام پروژه : "&Help!E19,"") -> نام پروژه : پروژه نمونه | F3: =IF(Help!E20<>"","نام دستگاه اجرايي : "&Help!E20,"") -> نام دستگاه اجرايي : کارفرمای نمونه
B4: =IF(Help!E22<>"","نام پیمانکار : "&Help!E22,"") -> نام پیمانکار : پیمانکار نمونه | F4: =IF(Help!E21<>"","نام مهندس مشاور : "&Help!E21,"") -> نام مهندس مشاور : مشاور نمونه
B5: فصل 1 . عملیات تخریب | I5: نسخه نمایشی
B6: شرح ردیف : | E6: بوته کني در زمينهاي پوشيده شده از بوته و خارج کردن ريشه‌هاي آن از محل عمليات. | J6: 212.082
B7: شمـاره رديف آنـاليــز : 010101 | J7: 212.082
B8: واحـد : مترمربع | D8: مقدار : 20 | J8: 20
B9: رديف | C9: کد عامل | D9: ماشين آلات 2 | E9: واحد | F9: مقیاس1 | G9: مقدار/مقیاس | H9: بهای واحد عامل | I9: بهاي کل
B10: 1 | C10: 25010902 | D10: گریدر به قدرت حدود180 اسب بخار باراننده | E10: دستگاه-ساعت | F10: 1 | G10: 0.0005 | H10: 424164 | I10: 212.082 | J10: 0.01
B11: درصد وزنی | E11: 1 | G11: جمع ماشين آلات | I11: 212.082
B12: شماره رديف يا رديفهاي معادل : 010101 | E12: بهای واحد کار: | I12: 212.082
B13: بهای واحد رديف : | D13: 215 | E13: مقايسه پيشنهاد نسبت به برآورد (درصد) ± | I13: -0.01357
B14: بهای کل کار: | D14: 4300 | E14: بهای کل کار: | I14: 4241.64
B15: پ
B16: فصل 1 . عملیات تخریب | I16: نسخه نمایشی
B17: شرح ردیف : | E17: کندن و يا بريدن و در صورت لزوم ريشه کن کردن درخت از هر نوع، در صورتي که محيط تنه درخت در سطح زمين تا 15 سانتي متر باشد، به ازاي هر 5 سانتي متر محيط تنه (کسر 5 سانتي متر به تناسب محاسبه مي‌شود) و حمل آن به خارج محل عمليات. | J17: 10316.092
B18: شمـاره رديف آنـاليــز : 010102 | J18: 10316.092
B19: واحـد : اصله | D19: مقدار : 20 | J19: 20
B20: رديف | C20: کد عامل | D20: نيروي انساني | E20: واحد | F20: مقیاس1 | G20: مقدار/مقیاس | H20: بهای واحد عامل | I20: بهاي کل
B21: 1 | C21: 14010102 | D21: كارگر ساده | E21: نفر- ساعت | F21: 1 | G21: 0.105 | H21: 57013 | I21: 5986.365 | J21: 2.1
B22: 2 | C22: 14120101 | D22: نجار در و پنجره ساز درجه یک | E22: نفر ساعت | F22: 1 | G22: 0.0105 | H22: 99236 | I22: 1041.978 | J22: 0.21
B23: 3 | C23: 14120401 | D23: کمک نجار | E23: نفر - ساعت | F23: 1 | G23: 0.053 | H23: 60297 | I23: 3195.741 | J23: 1.06
B24: درصد وزنی | E24: 0.9911 | G24: جمع نيروي انساني | I24: 10224.084
B25: رديف | C25: کد عامل | D25: ماشين آلات 2 | E25: واحد | F25: مقیاس1 | G25: مقدار/مقیاس | H25: بهای واحد عامل | I25: بهاي کل
B26: 1 | C26: 28060203 | D26: اره بنزینی متحرک چوب | E26: دستگاه ساعت | F26: 1 | G26: 0.053 | H26: 1736 | I26: 92.008 | J26: 1.06
B27: درصد وزنی | E27: 0.0089 | G27: جمع ماشين آلات | I27: 92.008
B28: شماره رديف يا رديفهاي معادل : 010102 | E28: بهای واحد کار: | I28: 10316.092
B29: بهای واحد رديف : | D29: 10300 | E29: مقايسه پيشنهاد نسبت به برآورد (درصد) ± | I29: 0.00156
B30: بهای کل کار: | D30: 206000 | E30: بهای کل کار: | I30: 206321.84
B31: پ

Sheet desk (hidden)
C1: =COUNTA(B:B) -> 4
F7: برنامه آناليز و پيشنهاد قيمت دانــــــا نويسنده برنامه : اميد شيخـــا
B8: 050202 | F8: HTTP://WWW.KELASEFAN.COM
B9: 050101 | F9: Email: Kelasefan@gmail.com
B10: 030101
B11: 020102
